{"text_format":"1","workbook":"xlsx","n_sheets":5,"sheets":["Longitudinal Joint Density","RX","data","spcyr","REVISIONS"],"not_rendered":{"charts":0,"images":1,"macros":1,"external_links":0,"defined_names":140,"comments":1,"pivot_tables":0},"unopened":[],"bounds":{"document_bytes":16777216,"sheet_cells":100000,"rows_first":2000,"rows_last":500,"rows_between":2000,"halvings":0,"cell_chars":16384,"cell_head_chars":4096},"cells_cut":0,"cells_raw":0,"read":"whole","date_system":"1900"}

{"sheet":"Longitudinal Joint Density","index":0,"n_rows":91,"n_cols":11,"rows_kept":91,"cut":false,"hidden":false,"merged":[[85,2,85,5],[91,1,91,3],[20,1,20,3],[22,1,22,3],[87,1,87,3],[24,1,24,3],[25,1,25,3],[26,1,26,3],[78,1,79,7],[74,1,75,2],[68,2,70,2],[81,1,81,7],[87,6,87,7],[44,1,44,3],[50,1,50,3],[72,1,72,3],[52,2,55,2],[52,1,55,1],[18,1,18,2],[30,4,30,5],[20,4,20,5],[22,4,22,5],[32,1,32,3],[39,2,42,2],[34,2,37,2],[34,1,37,1],[7,1,7,2],[8,1,8,2],[9,1,9,2],[10,1,10,2],[0,0,0,1],[7,7,7,8],[8,7,8,8],[9,7,9,8],[10,7,10,8],[7,3,7,4],[8,3,8,4],[9,3,9,4],[10,3,10,4],[7,5,7,6],[8,5,8,6],[9,5,9,6],[82,2,82,5],[10,5,10,6],[12,1,12,2],[13,1,13,2],[15,1,15,2],[11,3,11,4],[12,3,12,4],[16,1,16,2],[13,3,13,4],[68,1,70,1],[16,3,16,4],[15,3,15,8],[16,7,16,8],[11,1,11,2],[11,7,11,8],[11,5,11,6],[83,2,83,5],[48,1,48,3],[12,5,12,6],[13,5,13,6],[14,1,14,2],[14,3,14,8],[48,4,48,5],[30,1,30,3],[39,1,42,1],[13,7,13,8],[12,7,12,8],[80,1,80,7],[57,1,60,1],[57,2,60,2],[62,1,62,3],[66,1,66,3]]}
["TxDOT Manuals >",null,null,null,"Tex-207-F"]
[null,"TEXAS DEPARTMENT OF TRANSPORTATION",null,null,null,null,null,null,null,null,84]
[null,null,null,null,null,null,null,null,null,null,2]
[null,null,null,null,null,null,null,null,null,null,"tx207vii.xlsm::45574.619201"]
[null,"LONGITUDINAL JOINT DENSITY"]
[null,"TEX-207-F, PART VII"]
[null,null,null,null,null,null,null,null,{"$f":"\"Longitudinal Joint Density :: File Version: \" & TEXT(MID(sn,SEARCH(\"::\",sn,1)+2,20),\"mm/dd/yy hh:mm:ss\")","v":"Longitudinal Joint Density :: File Version: 10/09/24 14:51:39"}]
[null,"SAMPLE ID:",null,null,null,"SAMPLED DATE:"]
[null,"TEST NUMBER:",null,null,null,"LETTING DATE:"]
[null,"SAMPLE STATUS:",null,null,null,"CONTROLLING CSJ:"]
[null,"COUNTY:",null,null,null,"SPEC YEAR:"]
[null,"SAMPLED BY:",null,null,null,"SPEC ITEM:"]
[null,"SAMPLE LOCATION:",null,null,null,"SPECIAL PROVISION:"]
[null,"MATERIAL CODE:",null,null,null,"MIX TYPE:"]
[null,"MATERIAL NAME:"]
[null,"PRODUCER:"]
[null,"AREA ENGINEER:",null,null,null,null,"PROJECT MANAGER:"]
[]
[null,"COURSE\\LIFT:",null,null,"STATION:",null,null,"DIST. FROM CL:"]
[]
[null,"Type of Density Gauge:"]
[]
[null,"Lot #"]
[]
[null,"Sublot #",null,null,1,2,3,4]
[null,"Station/ID Number"]
[null,"Travel Lane"]
[]
[null,"LEFT  LONGITUDINAL  JOINT"]
[]
[null,"Type of Longitudinal Joint:"]
[]
[null,"Sublot #",null,null,1,2,3,4]
[]
[null,"LEFT MAT EDGE LONGITUDINAL JOINT DENSITY","Gauge Readings (lbs/cf)",1]
[null,null,null,2]
[null,null,null,3]
[null,null,null,"Average",{"$f":"IF(ISERROR(+IF(COUNTBLANK(E35:E37)=3,\"\",AVERAGE(E35:E37))),\"\",+IF(COUNTBLANK(E35:E37)=3,\"\",AVERAGE(E35:E37)))","v":""},{"$f":"IF(ISERROR(+IF(COUNTBLANK(F35:F37)=3,\"\",AVERAGE(F35:F37))),\"\",+IF(COUNTBLANK(F35:F37)=3,\"\",AVERAGE(F35:F37)))","v":""},{"$f":"IF(ISERROR(+IF(COUNTBLANK(G35:G37)=3,\"\",AVERAGE(G35:G37))),\"\",+IF(COUNTBLANK(G35:G37)=3,\"\",AVERAGE(G35:G37)))","v":""},{"$f":"IF(ISERROR(+IF(COUNTBLANK(H35:H37)=3,\"\",AVERAGE(H35:H37))),\"\",+IF(COUNTBLANK(H35:H37)=3,\"\",AVERAGE(H35:H37)))","v":""}]
[]
[null,"INTERIOR MAT DENSITY","Gauge Readings (lbs/cf)",1]
[null,null,null,2]
[null,null,null,3]
[null,null,null,"Average",{"$f":"IF(ISERROR(+IF(COUNTBLANK(E40:E42)=3,\"\",AVERAGE(E40:E42))),\"\",+IF(COUNTBLANK(E40:E42)=3,\"\",AVERAGE(E40:E42)))","v":""},{"$f":"IF(ISERROR(+IF(COUNTBLANK(F40:F42)=3,\"\",AVERAGE(F40:F42))),\"\",+IF(COUNTBLANK(F40:F42)=3,\"\",AVERAGE(F40:F42)))","v":""},{"$f":"IF(ISERROR(+IF(COUNTBLANK(G40:G42)=3,\"\",AVERAGE(G40:G42))),\"\",+IF(COUNTBLANK(G40:G42)=3,\"\",AVERAGE(G40:G42)))","v":""},{"$f":"IF(ISERROR(+IF(COUNTBLANK(H40:H42)=3,\"\",AVERAGE(H40:H42))),\"\",+IF(COUNTBLANK(H40:H42)=3,\"\",AVERAGE(H40:H42)))","v":""}]
[]
[null,"Density Difference Interior & Left Mat Edge",null,null,{"$f":"IF(ISERROR(+IF(OR(E38=\"\",E43=\"\"),\"\",(E38-E43))),\"\",+IF(OR(E38=\"\",E43=\"\"),\"\",(E38-E43)))","v":""},{"$f":"IF(ISERROR(+IF(OR(F38=\"\",F43=\"\"),\"\",(F38-F43))),\"\",+IF(OR(F38=\"\",F43=\"\"),\"\",(F38-F43)))","v":""},{"$f":"IF(ISERROR(+IF(OR(G38=\"\",G43=\"\"),\"\",(G38-G43))),\"\",+IF(OR(G38=\"\",G43=\"\"),\"\",(G38-G43)))","v":""},{"$f":"IF(ISERROR(+IF(OR(H38=\"\",H43=\"\"),\"\",(H38-H43))),\"\",+IF(OR(H38=\"\",H43=\"\"),\"\",(H38-H43)))","v":""}]
[]
[null,"RIGHT  LONGITUDINAL  JOINT"]
[]
[null,"Type of Longitudinal Joint:"]
[]
[null,"Sublot #",null,null,1,2,3,4]
[]
[null,"RIGHT MAT EDGE LONGITUDINAL JOINT DENSITY","Gauge Readings (lbs/cf)",1]
[null,null,null,2]
[null,null,null,3]
[null,null,null,"Average",{"$f":"IF(ISERROR(+IF(COUNTBLANK(E53:E55)=3,\"\",AVERAGE(E53:E55))),\"\",+IF(COUNTBLANK(E53:E55)=3,\"\",AVERAGE(E53:E55)))","v":""},{"$f":"IF(ISERROR(+IF(COUNTBLANK(F53:F55)=3,\"\",AVERAGE(F53:F55))),\"\",+IF(COUNTBLANK(F53:F55)=3,\"\",AVERAGE(F53:F55)))","v":""},{"$f":"IF(ISERROR(+IF(COUNTBLANK(G53:G55)=3,\"\",AVERAGE(G53:G55))),\"\",+IF(COUNTBLANK(G53:G55)=3,\"\",AVERAGE(G53:G55)))","v":""},{"$f":"IF(ISERROR(+IF(COUNTBLANK(H53:H55)=3,\"\",AVERAGE(H53:H55))),\"\",+IF(COUNTBLANK(H53:H55)=3,\"\",AVERAGE(H53:H55)))","v":""}]
[]
[null,"INTERIOR MAT DENSITY","Gauge Readings (lbs/cf)",1]
[null,null,null,2]
[null,null,null,3]
[null,null,null,"Average",{"$f":"IF(ISERROR(+IF(COUNTBLANK(E58:E60)=3,\"\",AVERAGE(E58:E60))),\"\",+IF(COUNTBLANK(E58:E60)=3,\"\",AVERAGE(E58:E60)))","v":""},{"$f":"IF(ISERROR(+IF(COUNTBLANK(F58:F60)=3,\"\",AVERAGE(F58:F60))),\"\",+IF(COUNTBLANK(F58:F60)=3,\"\",AVERAGE(F58:F60)))","v":""},{"$f":"IF(ISERROR(+IF(COUNTBLANK(G58:G60)=3,\"\",AVERAGE(G58:G60))),\"\",+IF(COUNTBLANK(G58:G60)=3,\"\",AVERAGE(G58:G60)))","v":""},{"$f":"IF(ISERROR(+IF(COUNTBLANK(H58:H60)=3,\"\",AVERAGE(H58:H60))),\"\",+IF(COUNTBLANK(H58:H60)=3,\"\",AVERAGE(H58:H60)))","v":""}]
[]
[null,"Density Difference Interior & Right Mat Edge",null,null,{"$f":"IF(ISERROR(+IF(OR(E56=\"\",E61=\"\"),\"\",(E56-E61))),\"\",+IF(OR(E56=\"\",E61=\"\"),\"\",(E56-E61)))","v":""},{"$f":"IF(ISERROR(+IF(OR(F56=\"\",F61=\"\"),\"\",(F56-F61))),\"\",+IF(OR(F56=\"\",F61=\"\"),\"\",(F56-F61)))","v":""},{"$f":"IF(ISERROR(+IF(OR(G56=\"\",G61=\"\"),\"\",(G56-G61))),\"\",+IF(OR(G56=\"\",G61=\"\"),\"\",(G56-G61)))","v":""},{"$f":"IF(ISERROR(+IF(OR(H56=\"\",H61=\"\"),\"\",(H56-H61))),\"\",+IF(OR(H56=\"\",H61=\"\"),\"\",(H56-H61)))","v":""}]
[]
[null,"CORRELATED JOINT DENSITY, %"]
[]
[null,"Sublot #",null,null,1,2,3,4]
[]
[null,"Interior Mat Density","Roadway Core Bulk Specific Gravity","Core # 1 Ga"]
[null,null,null,"Core # 2 Ga"]
[null,null,null,"Average Ga",{"$f":"IF(ISERROR(IF(COUNTBLANK(E69:E70)=2,\"\", AVERAGE(E69:E70))),\"\",IF(COUNTBLANK(E69:E70)=2,\"\", AVERAGE(E69:E70)))","v":""},{"$f":"IF(ISERROR(IF(COUNTBLANK(F69:F70)=2,\"\", AVERAGE(F69:F70))),\"\",IF(COUNTBLANK(F69:F70)=2,\"\", AVERAGE(F69:F70)))","v":""},{"$f":"IF(ISERROR(IF(COUNTBLANK(G69:G70)=2,\"\", AVERAGE(G69:G70))),\"\",IF(COUNTBLANK(G69:G70)=2,\"\", AVERAGE(G69:G70)))","v":""},{"$f":"IF(ISERROR(IF(COUNTBLANK(H69:H70)=2,\"\", AVERAGE(H69:H70))),\"\",IF(COUNTBLANK(H69:H70)=2,\"\", AVERAGE(H69:H70)))","v":""}]
[]
[null,"Rice Gravity, Gr:"]
[]
[null,"Correlated Joint Density",null,"Left Mat Edge",{"$f":"+IF(data!H4=\"\",\"\",IF(ISERROR(((data!H4/62.4)/E73)*100),\"\",((data!H4/62.4)/E73)*100))","v":""},{"$f":"+IF(data!H5=\"\",\"\",IF(ISERROR(((data!H5/62.4)/F73)*100),\"\",((data!H5/62.4)/F73)*100))","v":""},{"$f":"+IF(data!H6=\"\",\"\",IF(ISERROR(((data!H6/62.4)/G73)*100),\"\",((data!H6/62.4)/G73)*100))","v":""},{"$f":"+IF(data!H7=\"\",\"\",IF(ISERROR(((data!H7/62.4)/H73)*100),\"\",((data!H7/62.4)/H73)*100))","v":""}]
[null,null,null,"Right Mat Edge",{"$f":"IF(ISERROR(+IF(data!N4=\"\",\"\",((data!N4/62.4)/E73)*100)),\"\",+IF(data!N4=\"\",\"\",((data!N4/62.4)/E73)*100))","v":""},{"$f":"IF(ISERROR(+IF(data!N5=\"\",\"\",((data!N5/62.4)/F73)*100)),\"\",+IF(data!N5=\"\",\"\",((data!N5/62.4)/F73)*100))","v":""},{"$f":"IF(ISERROR(+IF(data!N6=\"\",\"\",((data!N6/62.4)/G73)*100)),\"\",+IF(data!N6=\"\",\"\",((data!N6/62.4)/G73)*100))","v":""},{"$f":"IF(ISERROR(+IF(data!N7=\"\",\"\",((data!N7/62.4)/H73)*100)),\"\",+IF(data!N7=\"\",\"\",((data!N7/62.4)/H73)*100))","v":""}]
[]
[null,"Remarks:",{"$f":"NOW()","v":"2024-10-09T14:51:39.610"}]
[]
[]
[]
[]
[null,"Test Method:","Tested By:",null,null,null,"Tested Date:"]
[null,"TX207"]
[]
[null,"TX207VII"]
[null,"Test Stamp Code:",null,null,"Omit Test:","Completed Date:","Reviewed By:"]
[]
[null,"Locked By:","TxDOT:","District:","Area:"]
[null,"","","",""]
[null,"Authorized By:",null,null,"Authorized Date:"]

{"sheet":"RX","index":1,"n_rows":116,"n_cols":9,"rows_kept":116,"cut":false,"hidden":true,"merged":[]}
[114]
["Fld_nbr","Value","Desc_1","Desc_2","Desc_3","Desc_4","Desc_5","Desc_6","Desc_7"]
[1,{"$f":"IF('Longitudinal Joint Density'!$B$79=\"\",\"\",'Longitudinal Joint Density'!$B$79)","v":""},{"$f":"'Longitudinal Joint Density'!$B$78","v":"Remarks:"}]
[2,{"$f":"IF('Longitudinal Joint Density'!$D$19=\"\",\"\",'Longitudinal Joint Density'!$D$19)","v":""},{"$f":"IF('Longitudinal Joint Density'!$B$19=\"\",\"\",'Longitudinal Joint Density'!$B$19)","v":"COURSE\\LIFT:"}]
[3,{"$f":"IF('Longitudinal Joint Density'!$C$84=\"\",\"\",'Longitudinal Joint Density'!$C$84)","v":""},"Tested By ",{"$f":"IF('Longitudinal Joint Density'!$B$84=\"\",\"\",'Longitudinal Joint Density'!$B$84)","v":"TX207"}]
[4,{"$f":"IF('Longitudinal Joint Density'!$G$84=\"\",\"\",'Longitudinal Joint Density'!$G$84)","v":""},"Tested Date ",{"$f":"IF('Longitudinal Joint Density'!$B$84=\"\",\"\",'Longitudinal Joint Density'!$B$84)","v":"TX207"}]
[5,{"$f":"IF('Longitudinal Joint Density'!$E$21=\"\",\"\",'Longitudinal Joint Density'!$E$21)","v":""},{"$f":"IF('Longitudinal Joint Density'!$B$6=\"\",\"\",'Longitudinal Joint Density'!$B$6)","v":"TEX-207-F, PART VII"},{"$f":"IF('Longitudinal Joint Density'!$B$21=\"\",\"\",'Longitudinal Joint Density'!$B$21)","v":"Type of Density Gauge:"}]
[6,{"$f":"IF('Longitudinal Joint Density'!$E$23=\"\",\"\",'Longitudinal Joint Density'!$E$23)","v":""},{"$f":"IF('Longitudinal Joint Density'!$B$6=\"\",\"\",'Longitudinal Joint Density'!$B$6)","v":"TEX-207-F, PART VII"},{"$f":"IF('Longitudinal Joint Density'!$B$23=\"\",\"\",'Longitudinal Joint Density'!$B$23)","v":"Lot #"}]
[7,{"$f":"IF('Longitudinal Joint Density'!$E$31=\"\",\"\",'Longitudinal Joint Density'!$E$31)","v":""},{"$f":"IF('Longitudinal Joint Density'!$B$6=\"\",\"\",'Longitudinal Joint Density'!$B$6)","v":"TEX-207-F, PART VII"},{"$f":"IF('Longitudinal Joint Density'!$B$31=\"\",\"\",'Longitudinal Joint Density'!$B$31)","v":"Type of Longitudinal Joint:"}]
[8,{"$f":"IF('Longitudinal Joint Density'!$E$49=\"\",\"\",'Longitudinal Joint Density'!$E$49)","v":""},{"$f":"IF('Longitudinal Joint Density'!$B$6=\"\",\"\",'Longitudinal Joint Density'!$B$6)","v":"TEX-207-F, PART VII"},{"$f":"IF('Longitudinal Joint Density'!$B$49=\"\",\"\",'Longitudinal Joint Density'!$B$49)","v":"Type of Longitudinal Joint:"}]
[9,{"$f":"IF('Longitudinal Joint Density'!$E$26=\"\",\"\",'Longitudinal Joint Density'!$E$26)","v":""},{"$f":"IF('Longitudinal Joint Density'!$B$6=\"\",\"\",'Longitudinal Joint Density'!$B$6)","v":"TEX-207-F, PART VII"},{"$f":"IF('Longitudinal Joint Density'!$B$25=\"\",\"\",'Longitudinal Joint Density'!$B$25)","v":"Sublot #"},{"$f":"IF('Longitudinal Joint Density'!$E$25=\"\",\"\",'Longitudinal Joint Density'!$E$25)","v":1},{"$f":"IF('Longitudinal Joint Density'!$B$26=\"\",\"\",'Longitudinal Joint Density'!$B$26)","v":"Station/ID Number"}]
[10,{"$f":"IF('Longitudinal Joint Density'!$E$27=\"\",\"\",'Longitudinal Joint Density'!$E$27)","v":""},{"$f":"IF('Longitudinal Joint Density'!$B$6=\"\",\"\",'Longitudinal Joint Density'!$B$6)","v":"TEX-207-F, PART VII"},{"$f":"IF('Longitudinal Joint Density'!$B$25=\"\",\"\",'Longitudinal Joint Density'!$B$25)","v":"Sublot #"},{"$f":"IF('Longitudinal Joint Density'!$E$25=\"\",\"\",'Longitudinal Joint Density'!$E$25)","v":1},{"$f":"IF('Longitudinal Joint Density'!$B$27=\"\",\"\",'Longitudinal Joint Density'!$B$27)","v":"Travel Lane"}]
[11,{"$f":"IF('Longitudinal Joint Density'!$E$35=\"\",\"\",'Longitudinal Joint Density'!$E$35)","v":""},{"$f":"IF('Longitudinal Joint Density'!$B$6=\"\",\"\",'Longitudinal Joint Density'!$B$6)","v":"TEX-207-F, PART VII"},{"$f":"IF('Longitudinal Joint Density'!$B$33=\"\",\"\",'Longitudinal Joint Density'!$B$33)","v":"Sublot #"},{"$f":"IF('Longitudinal Joint Density'!$E$33=\"\",\"\",'Longitudinal Joint Density'!$E$33)","v":1},{"$f":"IF('Longitudinal Joint Density'!$B$35=\"\",\"\",'Longitudinal Joint Density'!$B$35)","v":"LEFT MAT EDGE LONGITUDINAL JOINT DENSITY"},{"$f":"IF('Longitudinal Joint Density'!$C$35=\"\",\"\",'Longitudinal Joint Density'!$C$35)","v":"Gauge Readings (lbs/cf)"},{"$f":"IF('Longitudinal Joint Density'!$D$35=\"\",\"\",'Longitudinal Joint Density'!$D$35)","v":1}]
[12,{"$f":"IF('Longitudinal Joint Density'!$E$36=\"\",\"\",'Longitudinal Joint Density'!$E$36)","v":""},{"$f":"IF('Longitudinal Joint Density'!$B$6=\"\",\"\",'Longitudinal Joint Density'!$B$6)","v":"TEX-207-F, PART VII"},{"$f":"IF('Longitudinal Joint Density'!$B$33=\"\",\"\",'Longitudinal Joint Density'!$B$33)","v":"Sublot #"},{"$f":"IF('Longitudinal Joint Density'!$E$33=\"\",\"\",'Longitudinal Joint Density'!$E$33)","v":1},{"$f":"IF('Longitudinal Joint Density'!$B$35=\"\",\"\",'Longitudinal Joint Density'!$B$35)","v":"LEFT MAT EDGE LONGITUDINAL JOINT DENSITY"},{"$f":"IF('Longitudinal Joint Density'!$C$35=\"\",\"\",'Longitudinal Joint Density'!$C$35)","v":"Gauge Readings (lbs/cf)"},{"$f":"IF('Longitudinal Joint Density'!$D$36=\"\",\"\",'Longitudinal Joint Density'!$D$36)","v":2}]
[13,{"$f":"IF('Longitudinal Joint Density'!$E$37=\"\",\"\",'Longitudinal Joint Density'!$E$37)","v":""},{"$f":"IF('Longitudinal Joint Density'!$B$6=\"\",\"\",'Longitudinal Joint Density'!$B$6)","v":"TEX-207-F, PART VII"},{"$f":"IF('Longitudinal Joint Density'!$B$33=\"\",\"\",'Longitudinal Joint Density'!$B$33)","v":"Sublot #"},{"$f":"IF('Longitudinal Joint Density'!$E$33=\"\",\"\",'Longitudinal Joint Density'!$E$33)","v":1},{"$f":"IF('Longitudinal Joint Density'!$B$35=\"\",\"\",'Longitudinal Joint Density'!$B$35)","v":"LEFT MAT EDGE LONGITUDINAL JOINT DENSITY"},{"$f":"IF('Longitudinal Joint Density'!$C$35=\"\",\"\",'Longitudinal Joint Density'!$C$35)","v":"Gauge Readings (lbs/cf)"},{"$f":"IF('Longitudinal Joint Density'!$D$37=\"\",\"\",'Longitudinal Joint Density'!$D$37)","v":3}]
[14,{"$f":"IF('Longitudinal Joint Density'!$E$38=\"\",\"\",'Longitudinal Joint Density'!$E$38)","v":""},{"$f":"IF('Longitudinal Joint Density'!$B$6=\"\",\"\",'Longitudinal Joint Density'!$B$6)","v":"TEX-207-F, PART VII"},{"$f":"IF('Longitudinal Joint Density'!$B$33=\"\",\"\",'Longitudinal Joint Density'!$B$33)","v":"Sublot #"},{"$f":"IF('Longitudinal Joint Density'!$E$33=\"\",\"\",'Longitudinal Joint Density'!$E$33)","v":1},{"$f":"IF('Longitudinal Joint Density'!$B$35=\"\",\"\",'Longitudinal Joint Density'!$B$35)","v":"LEFT MAT EDGE LONGITUDINAL JOINT DENSITY"},{"$f":"IF('Longitudinal Joint Density'!$C$35=\"\",\"\",'Longitudinal Joint Density'!$C$35)","v":"Gauge Readings (lbs/cf)"},{"$f":"IF('Longitudinal Joint Density'!$D$38=\"\",\"\",'Longitudinal Joint Density'!$D$38)","v":"Average"}]
[15,{"$f":"IF('Longitudinal Joint Density'!$E$40=\"\",\"\",'Longitudinal Joint Density'!$E$40)","v":""},{"$f":"IF('Longitudinal Joint Density'!$B$6=\"\",\"\",'Longitudinal Joint Density'!$B$6)","v":"TEX-207-F, PART VII"},{"$f":"IF('Longitudinal Joint Density'!$B$33=\"\",\"\",'Longitudinal Joint Density'!$B$33)","v":"Sublot #"},{"$f":"IF('Longitudinal Joint Density'!$E$33=\"\",\"\",'Longitudinal Joint Density'!$E$33)","v":1},{"$f":"IF('Longitudinal Joint Density'!$B$40=\"\",\"\",'Longitudinal Joint Density'!$B$40)","v":"INTERIOR MAT DENSITY"},{"$f":"IF('Longitudinal Joint Density'!$C$40=\"\",\"\",'Longitudinal Joint Density'!$C$40)","v":"Gauge Readings (lbs/cf)"},{"$f":"IF('Longitudinal Joint Density'!$D$40=\"\",\"\",'Longitudinal Joint Density'!$D$40)","v":1}]
[16,{"$f":"IF('Longitudinal Joint Density'!$E$41=\"\",\"\",'Longitudinal Joint Density'!$E$41)","v":""},{"$f":"IF('Longitudinal Joint Density'!$B$6=\"\",\"\",'Longitudinal Joint Density'!$B$6)","v":"TEX-207-F, PART VII"},{"$f":"IF('Longitudinal Joint Density'!$B$33=\"\",\"\",'Longitudinal Joint Density'!$B$33)","v":"Sublot #"},{"$f":"IF('Longitudinal Joint Density'!$E$33=\"\",\"\",'Longitudinal Joint Density'!$E$33)","v":1},{"$f":"IF('Longitudinal Joint Density'!$B$40=\"\",\"\",'Longitudinal Joint Density'!$B$40)","v":"INTERIOR MAT DENSITY"},{"$f":"IF('Longitudinal Joint Density'!$C$40=\"\",\"\",'Longitudinal Joint Density'!$C$40)","v":"Gauge Readings (lbs/cf)"},{"$f":"IF('Longitudinal Joint Density'!$D$41=\"\",\"\",'Longitudinal Joint Density'!$D$41)","v":2}]
[17,{"$f":"IF('Longitudinal Joint Density'!$E$42=\"\",\"\",'Longitudinal Joint Density'!$E$42)","v":""},{"$f":"IF('Longitudinal Joint Density'!$B$6=\"\",\"\",'Longitudinal Joint Density'!$B$6)","v":"TEX-207-F, PART VII"},{"$f":"IF('Longitudinal Joint Density'!$B$33=\"\",\"\",'Longitudinal Joint Density'!$B$33)","v":"Sublot #"},{"$f":"IF('Longitudinal Joint Density'!$E$33=\"\",\"\",'Longitudinal Joint Density'!$E$33)","v":1},{"$f":"IF('Longitudinal Joint Density'!$B$40=\"\",\"\",'Longitudinal Joint Density'!$B$40)","v":"INTERIOR MAT DENSITY"},{"$f":"IF('Longitudinal Joint Density'!$C$40=\"\",\"\",'Longitudinal Joint Density'!$C$40)","v":"Gauge Readings (lbs/cf)"},{"$f":"IF('Longitudinal Joint Density'!$D$42=\"\",\"\",'Longitudinal Joint Density'!$D$42)","v":3}]
[18,{"$f":"IF('Longitudinal Joint Density'!$E$43=\"\",\"\",'Longitudinal Joint Density'!$E$43)","v":""},{"$f":"IF('Longitudinal Joint Density'!$B$6=\"\",\"\",'Longitudinal Joint Density'!$B$6)","v":"TEX-207-F, PART VII"},{"$f":"IF('Longitudinal Joint Density'!$B$33=\"\",\"\",'Longitudinal Joint Density'!$B$33)","v":"Sublot #"},{"$f":"IF('Longitudinal Joint Density'!$E$33=\"\",\"\",'Longitudinal Joint Density'!$E$33)","v":1},{"$f":"IF('Longitudinal Joint Density'!$B$40=\"\",\"\",'Longitudinal Joint Density'!$B$40)","v":"INTERIOR MAT DENSITY"},{"$f":"IF('Longitudinal Joint Density'!$C$40=\"\",\"\",'Longitudinal Joint Density'!$C$40)","v":"Gauge Readings (lbs/cf)"},{"$f":"IF('Longitudinal Joint Density'!$D$43=\"\",\"\",'Longitudinal Joint Density'!$D$43)","v":"Average"}]
[19,{"$f":"IF('Longitudinal Joint Density'!$E$45=\"\",\"\",'Longitudinal Joint Density'!$E$45)","v":""},{"$f":"IF('Longitudinal Joint Density'!$B$6=\"\",\"\",'Longitudinal Joint Density'!$B$6)","v":"TEX-207-F, PART VII"},{"$f":"IF('Longitudinal Joint Density'!$B$33=\"\",\"\",'Longitudinal Joint Density'!$B$33)","v":"Sublot #"},{"$f":"IF('Longitudinal Joint Density'!$E$33=\"\",\"\",'Longitudinal Joint Density'!$E$33)","v":1},{"$f":"IF('Longitudinal Joint Density'!$B$45=\"\",\"\",'Longitudinal Joint Density'!$B$45)","v":"Density Difference Interior & Left Mat Edge"}]
[20,{"$f":"IF('Longitudinal Joint Density'!$E$53=\"\",\"\",'Longitudinal Joint Density'!$E$53)","v":""},{"$f":"IF('Longitudinal Joint Density'!$B$6=\"\",\"\",'Longitudinal Joint Density'!$B$6)","v":"TEX-207-F, PART VII"},{"$f":"IF('Longitudinal Joint Density'!$B$51=\"\",\"\",'Longitudinal Joint Density'!$B$51)","v":"Sublot #"},{"$f":"IF('Longitudinal Joint Density'!$E$51=\"\",\"\",'Longitudinal Joint Density'!$E$51)","v":1},{"$f":"IF('Longitudinal Joint Density'!$B$53=\"\",\"\",'Longitudinal Joint Density'!$B$53)","v":"RIGHT MAT EDGE LONGITUDINAL JOINT DENSITY"},{"$f":"IF('Longitudinal Joint Density'!$C$53=\"\",\"\",'Longitudinal Joint Density'!$C$53)","v":"Gauge Readings (lbs/cf)"},{"$f":"IF('Longitudinal Joint Density'!$D$53=\"\",\"\",'Longitudinal Joint Density'!$D$53)","v":1}]
[21,{"$f":"IF('Longitudinal Joint Density'!$E$54=\"\",\"\",'Longitudinal Joint Density'!$E$54)","v":""},{"$f":"IF('Longitudinal Joint Density'!$B$6=\"\",\"\",'Longitudinal Joint Density'!$B$6)","v":"TEX-207-F, PART VII"},{"$f":"IF('Longitudinal Joint Density'!$B$51=\"\",\"\",'Longitudinal Joint Density'!$B$51)","v":"Sublot #"},{"$f":"IF('Longitudinal Joint Density'!$E$51=\"\",\"\",'Longitudinal Joint Density'!$E$51)","v":1},{"$f":"IF('Longitudinal Joint Density'!$B$53=\"\",\"\",'Longitudinal Joint Density'!$B$53)","v":"RIGHT MAT EDGE LONGITUDINAL JOINT DENSITY"},{"$f":"IF('Longitudinal Joint Density'!$C$53=\"\",\"\",'Longitudinal Joint Density'!$C$53)","v":"Gauge Readings (lbs/cf)"},{"$f":"IF('Longitudinal Joint Density'!$D$54=\"\",\"\",'Longitudinal Joint Density'!$D$54)","v":2}]
[22,{"$f":"IF('Longitudinal Joint Density'!$E$55=\"\",\"\",'Longitudinal Joint Density'!$E$55)","v":""},{"$f":"IF('Longitudinal Joint Density'!$B$6=\"\",\"\",'Longitudinal Joint Density'!$B$6)","v":"TEX-207-F, PART VII"},{"$f":"IF('Longitudinal Joint Density'!$B$51=\"\",\"\",'Longitudinal Joint Density'!$B$51)","v":"Sublot #"},{"$f":"IF('Longitudinal Joint Density'!$E$51=\"\",\"\",'Longitudinal Joint Density'!$E$51)","v":1},{"$f":"IF('Longitudinal Joint Density'!$B$53=\"\",\"\",'Longitudinal Joint Density'!$B$53)","v":"RIGHT MAT EDGE LONGITUDINAL JOINT DENSITY"},{"$f":"IF('Longitudinal Joint Density'!$C$53=\"\",\"\",'Longitudinal Joint Density'!$C$53)","v":"Gauge Readings (lbs/cf)"},{"$f":"IF('Longitudinal Joint Density'!$D$55=\"\",\"\",'Longitudinal Joint Density'!$D$55)","v":3}]
[23,{"$f":"IF('Longitudinal Joint Density'!$E$56=\"\",\"\",'Longitudinal Joint Density'!$E$56)","v":""},{"$f":"IF('Longitudinal Joint Density'!$B$6=\"\",\"\",'Longitudinal Joint Density'!$B$6)","v":"TEX-207-F, PART VII"},{"$f":"IF('Longitudinal Joint Density'!$B$51=\"\",\"\",'Longitudinal Joint Density'!$B$51)","v":"Sublot #"},{"$f":"IF('Longitudinal Joint Density'!$E$51=\"\",\"\",'Longitudinal Joint Density'!$E$51)","v":1},{"$f":"IF('Longitudinal Joint Density'!$B$53=\"\",\"\",'Longitudinal Joint Density'!$B$53)","v":"RIGHT MAT EDGE LONGITUDINAL JOINT DENSITY"},{"$f":"IF('Longitudinal Joint Density'!$C$53=\"\",\"\",'Longitudinal Joint Density'!$C$53)","v":"Gauge Readings (lbs/cf)"},{"$f":"IF('Longitudinal Joint Density'!$D$56=\"\",\"\",'Longitudinal Joint Density'!$D$56)","v":"Average"}]
[24,{"$f":"IF('Longitudinal Joint Density'!$E$58=\"\",\"\",'Longitudinal Joint Density'!$E$58)","v":""},{"$f":"IF('Longitudinal Joint Density'!$B$6=\"\",\"\",'Longitudinal Joint Density'!$B$6)","v":"TEX-207-F, PART VII"},{"$f":"IF('Longitudinal Joint Density'!$B$51=\"\",\"\",'Longitudinal Joint Density'!$B$51)","v":"Sublot #"},{"$f":"IF('Longitudinal Joint Density'!$E$51=\"\",\"\",'Longitudinal Joint Density'!$E$51)","v":1},{"$f":"IF('Longitudinal Joint Density'!$B$58=\"\",\"\",'Longitudinal Joint Density'!$B$58)","v":"INTERIOR MAT DENSITY"},{"$f":"IF('Longitudinal Joint Density'!$C$58=\"\",\"\",'Longitudinal Joint Density'!$C$58)","v":"Gauge Readings (lbs/cf)"},{"$f":"IF('Longitudinal Joint Density'!$D$58=\"\",\"\",'Longitudinal Joint Density'!$D$58)","v":1}]
[25,{"$f":"IF('Longitudinal Joint Density'!$E$59=\"\",\"\",'Longitudinal Joint Density'!$E$59)","v":""},{"$f":"IF('Longitudinal Joint Density'!$B$6=\"\",\"\",'Longitudinal Joint Density'!$B$6)","v":"TEX-207-F, PART VII"},{"$f":"IF('Longitudinal Joint Density'!$B$51=\"\",\"\",'Longitudinal Joint Density'!$B$51)","v":"Sublot #"},{"$f":"IF('Longitudinal Joint Density'!$E$51=\"\",\"\",'Longitudinal Joint Density'!$E$51)","v":1},{"$f":"IF('Longitudinal Joint Density'!$B$58=\"\",\"\",'Longitudinal Joint Density'!$B$58)","v":"INTERIOR MAT DENSITY"},{"$f":"IF('Longitudinal Joint Density'!$C$58=\"\",\"\",'Longitudinal Joint Density'!$C$58)","v":"Gauge Readings (lbs/cf)"},{"$f":"IF('Longitudinal Joint Density'!$D$59=\"\",\"\",'Longitudinal Joint Density'!$D$59)","v":2}]
[26,{"$f":"IF('Longitudinal Joint Density'!$E$60=\"\",\"\",'Longitudinal Joint Density'!$E$60)","v":""},{"$f":"IF('Longitudinal Joint Density'!$B$6=\"\",\"\",'Longitudinal Joint Density'!$B$6)","v":"TEX-207-F, PART VII"},{"$f":"IF('Longitudinal Joint Density'!$B$51=\"\",\"\",'Longitudinal Joint Density'!$B$51)","v":"Sublot #"},{"$f":"IF('Longitudinal Joint Density'!$E$51=\"\",\"\",'Longitudinal Joint Density'!$E$51)","v":1},{"$f":"IF('Longitudinal Joint Density'!$B$58=\"\",\"\",'Longitudinal Joint Density'!$B$58)","v":"INTERIOR MAT DENSITY"},{"$f":"IF('Longitudinal Joint Density'!$C$58=\"\",\"\",'Longitudinal Joint Density'!$C$58)","v":"Gauge Readings (lbs/cf)"},{"$f":"IF('Longitudinal Joint Density'!$D$60=\"\",\"\",'Longitudinal Joint Density'!$D$60)","v":3}]
[27,{"$f":"IF('Longitudinal Joint Density'!$E$61=\"\",\"\",'Longitudinal Joint Density'!$E$61)","v":""},{"$f":"IF('Longitudinal Joint Density'!$B$6=\"\",\"\",'Longitudinal Joint Density'!$B$6)","v":"TEX-207-F, PART VII"},{"$f":"IF('Longitudinal Joint Density'!$B$51=\"\",\"\",'Longitudinal Joint Density'!$B$51)","v":"Sublot #"},{"$f":"IF('Longitudinal Joint Density'!$E$51=\"\",\"\",'Longitudinal Joint Density'!$E$51)","v":1},{"$f":"IF('Longitudinal Joint Density'!$B$58=\"\",\"\",'Longitudinal Joint Density'!$B$58)","v":"INTERIOR MAT DENSITY"},{"$f":"IF('Longitudinal Joint Density'!$C$58=\"\",\"\",'Longitudinal Joint Density'!$C$58)","v":"Gauge Readings (lbs/cf)"},{"$f":"IF('Longitudinal Joint Density'!$D$61=\"\",\"\",'Longitudinal Joint Density'!$D$61)","v":"Average"}]
[28,{"$f":"IF('Longitudinal Joint Density'!$E$63=\"\",\"\",'Longitudinal Joint Density'!$E$63)","v":""},{"$f":"IF('Longitudinal Joint Density'!$B$6=\"\",\"\",'Longitudinal Joint Density'!$B$6)","v":"TEX-207-F, PART VII"},{"$f":"IF('Longitudinal Joint Density'!$B$51=\"\",\"\",'Longitudinal Joint Density'!$B$51)","v":"Sublot #"},{"$f":"IF('Longitudinal Joint Density'!$E$51=\"\",\"\",'Longitudinal Joint Density'!$E$51)","v":1},{"$f":"IF('Longitudinal Joint Density'!$B$63=\"\",\"\",'Longitudinal Joint Density'!$B$63)","v":"Density Difference Interior & Right Mat Edge"}]
[29,{"$f":"IF('Longitudinal Joint Density'!$E$69=\"\",\"\",'Longitudinal Joint Density'!$E$69)","v":""},{"$f":"IF('Longitudinal Joint Density'!$B$6=\"\",\"\",'Longitudinal Joint Density'!$B$6)","v":"TEX-207-F, PART VII"},{"$f":"IF('Longitudinal Joint Density'!$B$67=\"\",\"\",'Longitudinal Joint Density'!$B$67)","v":"Sublot #"},{"$f":"IF('Longitudinal Joint Density'!$E$67=\"\",\"\",'Longitudinal Joint Density'!$E$67)","v":1},{"$f":"IF('Longitudinal Joint Density'!$B$69=\"\",\"\",'Longitudinal Joint Density'!$B$69)","v":"Interior Mat Density"},{"$f":"IF('Longitudinal Joint Density'!$C$69=\"\",\"\",'Longitudinal Joint Density'!$C$69)","v":"Roadway Core Bulk Specific Gravity"},{"$f":"IF('Longitudinal Joint Density'!$D$69=\"\",\"\",'Longitudinal Joint Density'!$D$69)","v":"Core # 1 Ga"}]
[30,{"$f":"IF('Longitudinal Joint Density'!$E$70=\"\",\"\",'Longitudinal Joint Density'!$E$70)","v":""},{"$f":"IF('Longitudinal Joint Density'!$B$6=\"\",\"\",'Longitudinal Joint Density'!$B$6)","v":"TEX-207-F, PART VII"},{"$f":"IF('Longitudinal Joint Density'!$B$67=\"\",\"\",'Longitudinal Joint Density'!$B$67)","v":"Sublot #"},{"$f":"IF('Longitudinal Joint Density'!$E$67=\"\",\"\",'Longitudinal Joint Density'!$E$67)","v":1},{"$f":"IF('Longitudinal Joint Density'!$B$69=\"\",\"\",'Longitudinal Joint Density'!$B$69)","v":"Interior Mat Density"},{"$f":"IF('Longitudinal Joint Density'!$C$69=\"\",\"\",'Longitudinal Joint Density'!$C$69)","v":"Roadway Core Bulk Specific Gravity"},{"$f":"IF('Longitudinal Joint Density'!$D$70=\"\",\"\",'Longitudinal Joint Density'!$D$70)","v":"Core # 2 Ga"}]
[31,{"$f":"IF('Longitudinal Joint Density'!$E$71=\"\",\"\",'Longitudinal Joint Density'!$E$71)","v":""},{"$f":"IF('Longitudinal Joint Density'!$B$6=\"\",\"\",'Longitudinal Joint Density'!$B$6)","v":"TEX-207-F, PART VII"},{"$f":"IF('Longitudinal Joint Density'!$B$67=\"\",\"\",'Longitudinal Joint Density'!$B$67)","v":"Sublot #"},{"$f":"IF('Longitudinal Joint Density'!$E$67=\"\",\"\",'Longitudinal Joint Density'!$E$67)","v":1},{"$f":"IF('Longitudinal Joint Density'!$B$69=\"\",\"\",'Longitudinal Joint Density'!$B$69)","v":"Interior Mat Density"},{"$f":"IF('Longitudinal Joint Density'!$C$69=\"\",\"\",'Longitudinal Joint Density'!$C$69)","v":"Roadway Core Bulk Specific Gravity"},{"$f":"IF('Longitudinal Joint Density'!$D$71=\"\",\"\",'Longitudinal Joint Density'!$D$71)","v":"Average Ga"}]
[32,{"$f":"IF('Longitudinal Joint Density'!$E$73=\"\",\"\",'Longitudinal Joint Density'!$E$73)","v":""},{"$f":"IF('Longitudinal Joint Density'!$B$6=\"\",\"\",'Longitudinal Joint Density'!$B$6)","v":"TEX-207-F, PART VII"},{"$f":"IF('Longitudinal Joint Density'!$B$67=\"\",\"\",'Longitudinal Joint Density'!$B$67)","v":"Sublot #"},{"$f":"IF('Longitudinal Joint Density'!$E$67=\"\",\"\",'Longitudinal Joint Density'!$E$67)","v":1},{"$f":"IF('Longitudinal Joint Density'!$B$73=\"\",\"\",'Longitudinal Joint Density'!$B$73)","v":"Rice Gravity, Gr:"}]
[33,{"$f":"IF('Longitudinal Joint Density'!$E$75=\"\",\"\",'Longitudinal Joint Density'!$E$75)","v":""},{"$f":"IF('Longitudinal Joint Density'!$B$6=\"\",\"\",'Longitudinal Joint Density'!$B$6)","v":"TEX-207-F, PART VII"},{"$f":"IF('Longitudinal Joint Density'!$B$67=\"\",\"\",'Longitudinal Joint Density'!$B$67)","v":"Sublot #"},{"$f":"IF('Longitudinal Joint Density'!$E$67=\"\",\"\",'Longitudinal Joint Density'!$E$67)","v":1},{"$f":"IF('Longitudinal Joint Density'!$B$75=\"\",\"\",'Longitudinal Joint Density'!$B$75)","v":"Correlated Joint Density"},{"$f":"IF('Longitudinal Joint Density'!$D$75=\"\",\"\",'Longitudinal Joint Density'!$D$75)","v":"Left Mat Edge"}]
[34,{"$f":"IF('Longitudinal Joint Density'!$E$76=\"\",\"\",'Longitudinal Joint Density'!$E$76)","v":""},{"$f":"IF('Longitudinal Joint Density'!$B$6=\"\",\"\",'Longitudinal Joint Density'!$B$6)","v":"TEX-207-F, PART VII"},{"$f":"IF('Longitudinal Joint Density'!$B$67=\"\",\"\",'Longitudinal Joint Density'!$B$67)","v":"Sublot #"},{"$f":"IF('Longitudinal Joint Density'!$E$67=\"\",\"\",'Longitudinal Joint Density'!$E$67)","v":1},{"$f":"IF('Longitudinal Joint Density'!$B$75=\"\",\"\",'Longitudinal Joint Density'!$B$75)","v":"Correlated Joint Density"},{"$f":"IF('Longitudinal Joint Density'!$D$76=\"\",\"\",'Longitudinal Joint Density'!$D$76)","v":"Right Mat Edge"}]
[35,{"$f":"IF('Longitudinal Joint Density'!$F$26=\"\",\"\",'Longitudinal Joint Density'!$F$26)","v":""},{"$f":"IF('Longitudinal Joint Density'!$B$6=\"\",\"\",'Longitudinal Joint Density'!$B$6)","v":"TEX-207-F, PART VII"},{"$f":"IF('Longitudinal Joint Density'!$B$25=\"\",\"\",'Longitudinal Joint Density'!$B$25)","v":"Sublot #"},{"$f":"IF('Longitudinal Joint Density'!$F$25=\"\",\"\",'Longitudinal Joint Density'!$F$25)","v":2},{"$f":"IF('Longitudinal Joint Density'!$B$26=\"\",\"\",'Longitudinal Joint Density'!$B$26)","v":"Station/ID Number"}]
[36,{"$f":"IF('Longitudinal Joint Density'!$F$27=\"\",\"\",'Longitudinal Joint Density'!$F$27)","v":""},{"$f":"IF('Longitudinal Joint Density'!$B$6=\"\",\"\",'Longitudinal Joint Density'!$B$6)","v":"TEX-207-F, PART VII"},{"$f":"IF('Longitudinal Joint Density'!$B$25=\"\",\"\",'Longitudinal Joint Density'!$B$25)","v":"Sublot #"},{"$f":"IF('Longitudinal Joint Density'!$F$25=\"\",\"\",'Longitudinal Joint Density'!$F$25)","v":2},{"$f":"IF('Longitudinal Joint Density'!$B$27=\"\",\"\",'Longitudinal Joint Density'!$B$27)","v":"Travel Lane"}]
[37,{"$f":"IF('Longitudinal Joint Density'!$F$35=\"\",\"\",'Longitudinal Joint Density'!$F$35)","v":""},{"$f":"IF('Longitudinal Joint Density'!$B$6=\"\",\"\",'Longitudinal Joint Density'!$B$6)","v":"TEX-207-F, PART VII"},{"$f":"IF('Longitudinal Joint Density'!$B$33=\"\",\"\",'Longitudinal Joint Density'!$B$33)","v":"Sublot #"},{"$f":"IF('Longitudinal Joint Density'!$F$33=\"\",\"\",'Longitudinal Joint Density'!$F$33)","v":2},{"$f":"IF('Longitudinal Joint Density'!$B$35=\"\",\"\",'Longitudinal Joint Density'!$B$35)","v":"LEFT MAT EDGE LONGITUDINAL JOINT DENSITY"},{"$f":"IF('Longitudinal Joint Density'!$C$35=\"\",\"\",'Longitudinal Joint Density'!$C$35)","v":"Gauge Readings (lbs/cf)"},{"$f":"IF('Longitudinal Joint Density'!$D$35=\"\",\"\",'Longitudinal Joint Density'!$D$35)","v":1}]
[38,{"$f":"IF('Longitudinal Joint Density'!$F$36=\"\",\"\",'Longitudinal Joint Density'!$F$36)","v":""},{"$f":"IF('Longitudinal Joint Density'!$B$6=\"\",\"\",'Longitudinal Joint Density'!$B$6)","v":"TEX-207-F, PART VII"},{"$f":"IF('Longitudinal Joint Density'!$B$33=\"\",\"\",'Longitudinal Joint Density'!$B$33)","v":"Sublot #"},{"$f":"IF('Longitudinal Joint Density'!$F$33=\"\",\"\",'Longitudinal Joint Density'!$F$33)","v":2},{"$f":"IF('Longitudinal Joint Density'!$B$35=\"\",\"\",'Longitudinal Joint Density'!$B$35)","v":"LEFT MAT EDGE LONGITUDINAL JOINT DENSITY"},{"$f":"IF('Longitudinal Joint Density'!$C$35=\"\",\"\",'Longitudinal Joint Density'!$C$35)","v":"Gauge Readings (lbs/cf)"},{"$f":"IF('Longitudinal Joint Density'!$D$36=\"\",\"\",'Longitudinal Joint Density'!$D$36)","v":2}]
[39,{"$f":"IF('Longitudinal Joint Density'!$F$37=\"\",\"\",'Longitudinal Joint Density'!$F$37)","v":""},{"$f":"IF('Longitudinal Joint Density'!$B$6=\"\",\"\",'Longitudinal Joint Density'!$B$6)","v":"TEX-207-F, PART VII"},{"$f":"IF('Longitudinal Joint Density'!$B$33=\"\",\"\",'Longitudinal Joint Density'!$B$33)","v":"Sublot #"},{"$f":"IF('Longitudinal Joint Density'!$F$33=\"\",\"\",'Longitudinal Joint Density'!$F$33)","v":2},{"$f":"IF('Longitudinal Joint Density'!$B$35=\"\",\"\",'Longitudinal Joint Density'!$B$35)","v":"LEFT MAT EDGE LONGITUDINAL JOINT DENSITY"},{"$f":"IF('Longitudinal Joint Density'!$C$35=\"\",\"\",'Longitudinal Joint Density'!$C$35)","v":"Gauge Readings (lbs/cf)"},{"$f":"IF('Longitudinal Joint Density'!$D$37=\"\",\"\",'Longitudinal Joint Density'!$D$37)","v":3}]
[40,{"$f":"IF('Longitudinal Joint Density'!$F$38=\"\",\"\",'Longitudinal Joint Density'!$F$38)","v":""},{"$f":"IF('Longitudinal Joint Density'!$B$6=\"\",\"\",'Longitudinal Joint Density'!$B$6)","v":"TEX-207-F, PART VII"},{"$f":"IF('Longitudinal Joint Density'!$B$33=\"\",\"\",'Longitudinal Joint Density'!$B$33)","v":"Sublot #"},{"$f":"IF('Longitudinal Joint Density'!$F$33=\"\",\"\",'Longitudinal Joint Density'!$F$33)","v":2},{"$f":"IF('Longitudinal Joint Density'!$B$35=\"\",\"\",'Longitudinal Joint Density'!$B$35)","v":"LEFT MAT EDGE LONGITUDINAL JOINT DENSITY"},{"$f":"IF('Longitudinal Joint Density'!$C$35=\"\",\"\",'Longitudinal Joint Density'!$C$35)","v":"Gauge Readings (lbs/cf)"},{"$f":"IF('Longitudinal Joint Density'!$D$38=\"\",\"\",'Longitudinal Joint Density'!$D$38)","v":"Average"}]
[41,{"$f":"IF('Longitudinal Joint Density'!$F$40=\"\",\"\",'Longitudinal Joint Density'!$F$40)","v":""},{"$f":"IF('Longitudinal Joint Density'!$B$6=\"\",\"\",'Longitudinal Joint Density'!$B$6)","v":"TEX-207-F, PART VII"},{"$f":"IF('Longitudinal Joint Density'!$B$33=\"\",\"\",'Longitudinal Joint Density'!$B$33)","v":"Sublot #"},{"$f":"IF('Longitudinal Joint Density'!$F$33=\"\",\"\",'Longitudinal Joint Density'!$F$33)","v":2},{"$f":"IF('Longitudinal Joint Density'!$B$40=\"\",\"\",'Longitudinal Joint Density'!$B$40)","v":"INTERIOR MAT DENSITY"},{"$f":"IF('Longitudinal Joint Density'!$C$40=\"\",\"\",'Longitudinal Joint Density'!$C$40)","v":"Gauge Readings (lbs/cf)"},{"$f":"IF('Longitudinal Joint Density'!$D$40=\"\",\"\",'Longitudinal Joint Density'!$D$40)","v":1}]
[42,{"$f":"IF('Longitudinal Joint Density'!$F$41=\"\",\"\",'Longitudinal Joint Density'!$F$41)","v":""},{"$f":"IF('Longitudinal Joint Density'!$B$6=\"\",\"\",'Longitudinal Joint Density'!$B$6)","v":"TEX-207-F, PART VII"},{"$f":"IF('Longitudinal Joint Density'!$B$33=\"\",\"\",'Longitudinal Joint Density'!$B$33)","v":"Sublot #"},{"$f":"IF('Longitudinal Joint Density'!$F$33=\"\",\"\",'Longitudinal Joint Density'!$F$33)","v":2},{"$f":"IF('Longitudinal Joint Density'!$B$40=\"\",\"\",'Longitudinal Joint Density'!$B$40)","v":"INTERIOR MAT DENSITY"},{"$f":"IF('Longitudinal Joint Density'!$C$40=\"\",\"\",'Longitudinal Joint Density'!$C$40)","v":"Gauge Readings (lbs/cf)"},{"$f":"IF('Longitudinal Joint Density'!$D$41=\"\",\"\",'Longitudinal Joint Density'!$D$41)","v":2}]
[43,{"$f":"IF('Longitudinal Joint Density'!$F$42=\"\",\"\",'Longitudinal Joint Density'!$F$42)","v":""},{"$f":"IF('Longitudinal Joint Density'!$B$6=\"\",\"\",'Longitudinal Joint Density'!$B$6)","v":"TEX-207-F, PART VII"},{"$f":"IF('Longitudinal Joint Density'!$B$33=\"\",\"\",'Longitudinal Joint Density'!$B$33)","v":"Sublot #"},{"$f":"IF('Longitudinal Joint Density'!$F$33=\"\",\"\",'Longitudinal Joint Density'!$F$33)","v":2},{"$f":"IF('Longitudinal Joint Density'!$B$40=\"\",\"\",'Longitudinal Joint Density'!$B$40)","v":"INTERIOR MAT DENSITY"},{"$f":"IF('Longitudinal Joint Density'!$C$40=\"\",\"\",'Longitudinal Joint Density'!$C$40)","v":"Gauge Readings (lbs/cf)"},{"$f":"IF('Longitudinal Joint Density'!$D$42=\"\",\"\",'Longitudinal Joint Density'!$D$42)","v":3}]
[44,{"$f":"IF('Longitudinal Joint Density'!$F$43=\"\",\"\",'Longitudinal Joint Density'!$F$43)","v":""},{"$f":"IF('Longitudinal Joint Density'!$B$6=\"\",\"\",'Longitudinal Joint Density'!$B$6)","v":"TEX-207-F, PART VII"},{"$f":"IF('Longitudinal Joint Density'!$B$33=\"\",\"\",'Longitudinal Joint Density'!$B$33)","v":"Sublot #"},{"$f":"IF('Longitudinal Joint Density'!$F$33=\"\",\"\",'Longitudinal Joint Density'!$F$33)","v":2},{"$f":"IF('Longitudinal Joint Density'!$B$40=\"\",\"\",'Longitudinal Joint Density'!$B$40)","v":"INTERIOR MAT DENSITY"},{"$f":"IF('Longitudinal Joint Density'!$C$40=\"\",\"\",'Longitudinal Joint Density'!$C$40)","v":"Gauge Readings (lbs/cf)"},{"$f":"IF('Longitudinal Joint Density'!$D$43=\"\",\"\",'Longitudinal Joint Density'!$D$43)","v":"Average"}]
[45,{"$f":"IF('Longitudinal Joint Density'!$F$45=\"\",\"\",'Longitudinal Joint Density'!$F$45)","v":""},{"$f":"IF('Longitudinal Joint Density'!$B$6=\"\",\"\",'Longitudinal Joint Density'!$B$6)","v":"TEX-207-F, PART VII"},{"$f":"IF('Longitudinal Joint Density'!$B$33=\"\",\"\",'Longitudinal Joint Density'!$B$33)","v":"Sublot #"},{"$f":"IF('Longitudinal Joint Density'!$F$33=\"\",\"\",'Longitudinal Joint Density'!$F$33)","v":2},{"$f":"IF('Longitudinal Joint Density'!$B$45=\"\",\"\",'Longitudinal Joint Density'!$B$45)","v":"Density Difference Interior & Left Mat Edge"}]
[46,{"$f":"IF('Longitudinal Joint Density'!$F$53=\"\",\"\",'Longitudinal Joint Density'!$F$53)","v":""},{"$f":"IF('Longitudinal Joint Density'!$B$6=\"\",\"\",'Longitudinal Joint Density'!$B$6)","v":"TEX-207-F, PART VII"},{"$f":"IF('Longitudinal Joint Density'!$B$51=\"\",\"\",'Longitudinal Joint Density'!$B$51)","v":"Sublot #"},{"$f":"IF('Longitudinal Joint Density'!$F$51=\"\",\"\",'Longitudinal Joint Density'!$F$51)","v":2},{"$f":"IF('Longitudinal Joint Density'!$B$53=\"\",\"\",'Longitudinal Joint Density'!$B$53)","v":"RIGHT MAT EDGE LONGITUDINAL JOINT DENSITY"},{"$f":"IF('Longitudinal Joint Density'!$C$53=\"\",\"\",'Longitudinal Joint Density'!$C$53)","v":"Gauge Readings (lbs/cf)"},{"$f":"IF('Longitudinal Joint Density'!$D$53=\"\",\"\",'Longitudinal Joint Density'!$D$53)","v":1}]
[47,{"$f":"IF('Longitudinal Joint Density'!$F$54=\"\",\"\",'Longitudinal Joint Density'!$F$54)","v":""},{"$f":"IF('Longitudinal Joint Density'!$B$6=\"\",\"\",'Longitudinal Joint Density'!$B$6)","v":"TEX-207-F, PART VII"},{"$f":"IF('Longitudinal Joint Density'!$B$51=\"\",\"\",'Longitudinal Joint Density'!$B$51)","v":"Sublot #"},{"$f":"IF('Longitudinal Joint Density'!$F$51=\"\",\"\",'Longitudinal Joint Density'!$F$51)","v":2},{"$f":"IF('Longitudinal Joint Density'!$B$53=\"\",\"\",'Longitudinal Joint Density'!$B$53)","v":"RIGHT MAT EDGE LONGITUDINAL JOINT DENSITY"},{"$f":"IF('Longitudinal Joint Density'!$C$53=\"\",\"\",'Longitudinal Joint Density'!$C$53)","v":"Gauge Readings (lbs/cf)"},{"$f":"IF('Longitudinal Joint Density'!$D$54=\"\",\"\",'Longitudinal Joint Density'!$D$54)","v":2}]
[48,{"$f":"IF('Longitudinal Joint Density'!$F$55=\"\",\"\",'Longitudinal Joint Density'!$F$55)","v":""},{"$f":"IF('Longitudinal Joint Density'!$B$6=\"\",\"\",'Longitudinal Joint Density'!$B$6)","v":"TEX-207-F, PART VII"},{"$f":"IF('Longitudinal Joint Density'!$B$51=\"\",\"\",'Longitudinal Joint Density'!$B$51)","v":"Sublot #"},{"$f":"IF('Longitudinal Joint Density'!$F$51=\"\",\"\",'Longitudinal Joint Density'!$F$51)","v":2},{"$f":"IF('Longitudinal Joint Density'!$B$53=\"\",\"\",'Longitudinal Joint Density'!$B$53)","v":"RIGHT MAT EDGE LONGITUDINAL JOINT DENSITY"},{"$f":"IF('Longitudinal Joint Density'!$C$53=\"\",\"\",'Longitudinal Joint Density'!$C$53)","v":"Gauge Readings (lbs/cf)"},{"$f":"IF('Longitudinal Joint Density'!$D$55=\"\",\"\",'Longitudinal Joint Density'!$D$55)","v":3}]
[49,{"$f":"IF('Longitudinal Joint Density'!$F$56=\"\",\"\",'Longitudinal Joint Density'!$F$56)","v":""},{"$f":"IF('Longitudinal Joint Density'!$B$6=\"\",\"\",'Longitudinal Joint Density'!$B$6)","v":"TEX-207-F, PART VII"},{"$f":"IF('Longitudinal Joint Density'!$B$51=\"\",\"\",'Longitudinal Joint Density'!$B$51)","v":"Sublot #"},{"$f":"IF('Longitudinal Joint Density'!$F$51=\"\",\"\",'Longitudinal Joint Density'!$F$51)","v":2},{"$f":"IF('Longitudinal Joint Density'!$B$53=\"\",\"\",'Longitudinal Joint Density'!$B$53)","v":"RIGHT MAT EDGE LONGITUDINAL JOINT DENSITY"},{"$f":"IF('Longitudinal Joint Density'!$C$53=\"\",\"\",'Longitudinal Joint Density'!$C$53)","v":"Gauge Readings (lbs/cf)"},{"$f":"IF('Longitudinal Joint Density'!$D$56=\"\",\"\",'Longitudinal Joint Density'!$D$56)","v":"Average"}]
[50,{"$f":"IF('Longitudinal Joint Density'!$F$58=\"\",\"\",'Longitudinal Joint Density'!$F$58)","v":""},{"$f":"IF('Longitudinal Joint Density'!$B$6=\"\",\"\",'Longitudinal Joint Density'!$B$6)","v":"TEX-207-F, PART VII"},{"$f":"IF('Longitudinal Joint Density'!$B$51=\"\",\"\",'Longitudinal Joint Density'!$B$51)","v":"Sublot #"},{"$f":"IF('Longitudinal Joint Density'!$F$51=\"\",\"\",'Longitudinal Joint Density'!$F$51)","v":2},{"$f":"IF('Longitudinal Joint Density'!$B$58=\"\",\"\",'Longitudinal Joint Density'!$B$58)","v":"INTERIOR MAT DENSITY"},{"$f":"IF('Longitudinal Joint Density'!$C$58=\"\",\"\",'Longitudinal Joint Density'!$C$58)","v":"Gauge Readings (lbs/cf)"},{"$f":"IF('Longitudinal Joint Density'!$D$58=\"\",\"\",'Longitudinal Joint Density'!$D$58)","v":1}]
[51,{"$f":"IF('Longitudinal Joint Density'!$F$59=\"\",\"\",'Longitudinal Joint Density'!$F$59)","v":""},{"$f":"IF('Longitudinal Joint Density'!$B$6=\"\",\"\",'Longitudinal Joint Density'!$B$6)","v":"TEX-207-F, PART VII"},{"$f":"IF('Longitudinal Joint Density'!$B$51=\"\",\"\",'Longitudinal Joint Density'!$B$51)","v":"Sublot #"},{"$f":"IF('Longitudinal Joint Density'!$F$51=\"\",\"\",'Longitudinal Joint Density'!$F$51)","v":2},{"$f":"IF('Longitudinal Joint Density'!$B$58=\"\",\"\",'Longitudinal Joint Density'!$B$58)","v":"INTERIOR MAT DENSITY"},{"$f":"IF('Longitudinal Joint Density'!$C$58=\"\",\"\",'Longitudinal Joint Density'!$C$58)","v":"Gauge Readings (lbs/cf)"},{"$f":"IF('Longitudinal Joint Density'!$D$59=\"\",\"\",'Longitudinal Joint Density'!$D$59)","v":2}]
[52,{"$f":"IF('Longitudinal Joint Density'!$F$60=\"\",\"\",'Longitudinal Joint Density'!$F$60)","v":""},{"$f":"IF('Longitudinal Joint Density'!$B$6=\"\",\"\",'Longitudinal Joint Density'!$B$6)","v":"TEX-207-F, PART VII"},{"$f":"IF('Longitudinal Joint Density'!$B$51=\"\",\"\",'Longitudinal Joint Density'!$B$51)","v":"Sublot #"},{"$f":"IF('Longitudinal Joint Density'!$F$51=\"\",\"\",'Longitudinal Joint Density'!$F$51)","v":2},{"$f":"IF('Longitudinal Joint Density'!$B$58=\"\",\"\",'Longitudinal Joint Density'!$B$58)","v":"INTERIOR MAT DENSITY"},{"$f":"IF('Longitudinal Joint Density'!$C$58=\"\",\"\",'Longitudinal Joint Density'!$C$58)","v":"Gauge Readings (lbs/cf)"},{"$f":"IF('Longitudinal Joint Density'!$D$60=\"\",\"\",'Longitudinal Joint Density'!$D$60)","v":3}]
[53,{"$f":"IF('Longitudinal Joint Density'!$F$61=\"\",\"\",'Longitudinal Joint Density'!$F$61)","v":""},{"$f":"IF('Longitudinal Joint Density'!$B$6=\"\",\"\",'Longitudinal Joint Density'!$B$6)","v":"TEX-207-F, PART VII"},{"$f":"IF('Longitudinal Joint Density'!$B$51=\"\",\"\",'Longitudinal Joint Density'!$B$51)","v":"Sublot #"},{"$f":"IF('Longitudinal Joint Density'!$F$51=\"\",\"\",'Longitudinal Joint Density'!$F$51)","v":2},{"$f":"IF('Longitudinal Joint Density'!$B$58=\"\",\"\",'Longitudinal Joint Density'!$B$58)","v":"INTERIOR MAT DENSITY"},{"$f":"IF('Longitudinal Joint Density'!$C$58=\"\",\"\",'Longitudinal Joint Density'!$C$58)","v":"Gauge Readings (lbs/cf)"},{"$f":"IF('Longitudinal Joint Density'!$D$61=\"\",\"\",'Longitudinal Joint Density'!$D$61)","v":"Average"}]
[54,{"$f":"IF('Longitudinal Joint Density'!$F$63=\"\",\"\",'Longitudinal Joint Density'!$F$63)","v":""},{"$f":"IF('Longitudinal Joint Density'!$B$6=\"\",\"\",'Longitudinal Joint Density'!$B$6)","v":"TEX-207-F, PART VII"},{"$f":"IF('Longitudinal Joint Density'!$B$51=\"\",\"\",'Longitudinal Joint Density'!$B$51)","v":"Sublot #"},{"$f":"IF('Longitudinal Joint Density'!$F$51=\"\",\"\",'Longitudinal Joint Density'!$F$51)","v":2},{"$f":"IF('Longitudinal Joint Density'!$B$63=\"\",\"\",'Longitudinal Joint Density'!$B$63)","v":"Density Difference Interior & Right Mat Edge"}]
[55,{"$f":"IF('Longitudinal Joint Density'!$F$69=\"\",\"\",'Longitudinal Joint Density'!$F$69)","v":""},{"$f":"IF('Longitudinal Joint Density'!$B$6=\"\",\"\",'Longitudinal Joint Density'!$B$6)","v":"TEX-207-F, PART VII"},{"$f":"IF('Longitudinal Joint Density'!$B$67=\"\",\"\",'Longitudinal Joint Density'!$B$67)","v":"Sublot #"},{"$f":"IF('Longitudinal Joint Density'!$F$67=\"\",\"\",'Longitudinal Joint Density'!$F$67)","v":2},{"$f":"IF('Longitudinal Joint Density'!$B$69=\"\",\"\",'Longitudinal Joint Density'!$B$69)","v":"Interior Mat Density"},{"$f":"IF('Longitudinal Joint Density'!$C$69=\"\",\"\",'Longitudinal Joint Density'!$C$69)","v":"Roadway Core Bulk Specific Gravity"},{"$f":"IF('Longitudinal Joint Density'!$D$69=\"\",\"\",'Longitudinal Joint Density'!$D$69)","v":"Core # 1 Ga"}]
[56,{"$f":"IF('Longitudinal Joint Density'!$F$70=\"\",\"\",'Longitudinal Joint Density'!$F$70)","v":""},{"$f":"IF('Longitudinal Joint Density'!$B$6=\"\",\"\",'Longitudinal Joint Density'!$B$6)","v":"TEX-207-F, PART VII"},{"$f":"IF('Longitudinal Joint Density'!$B$67=\"\",\"\",'Longitudinal Joint Density'!$B$67)","v":"Sublot #"},{"$f":"IF('Longitudinal Joint Density'!$F$67=\"\",\"\",'Longitudinal Joint Density'!$F$67)","v":2},{"$f":"IF('Longitudinal Joint Density'!$B$69=\"\",\"\",'Longitudinal Joint Density'!$B$69)","v":"Interior Mat Density"},{"$f":"IF('Longitudinal Joint Density'!$C$69=\"\",\"\",'Longitudinal Joint Density'!$C$69)","v":"Roadway Core Bulk Specific Gravity"},{"$f":"IF('Longitudinal Joint Density'!$D$70=\"\",\"\",'Longitudinal Joint Density'!$D$70)","v":"Core # 2 Ga"}]
[57,{"$f":"IF('Longitudinal Joint Density'!$F$71=\"\",\"\",'Longitudinal Joint Density'!$F$71)","v":""},{"$f":"IF('Longitudinal Joint Density'!$B$6=\"\",\"\",'Longitudinal Joint Density'!$B$6)","v":"TEX-207-F, PART VII"},{"$f":"IF('Longitudinal Joint Density'!$B$67=\"\",\"\",'Longitudinal Joint Density'!$B$67)","v":"Sublot #"},{"$f":"IF('Longitudinal Joint Density'!$F$67=\"\",\"\",'Longitudinal Joint Density'!$F$67)","v":2},{"$f":"IF('Longitudinal Joint Density'!$B$69=\"\",\"\",'Longitudinal Joint Density'!$B$69)","v":"Interior Mat Density"},{"$f":"IF('Longitudinal Joint Density'!$C$69=\"\",\"\",'Longitudinal Joint Density'!$C$69)","v":"Roadway Core Bulk Specific Gravity"},{"$f":"IF('Longitudinal Joint Density'!$D$71=\"\",\"\",'Longitudinal Joint Density'!$D$71)","v":"Average Ga"}]
[58,{"$f":"IF('Longitudinal Joint Density'!$F$73=\"\",\"\",'Longitudinal Joint Density'!$F$73)","v":""},{"$f":"IF('Longitudinal Joint Density'!$B$6=\"\",\"\",'Longitudinal Joint Density'!$B$6)","v":"TEX-207-F, PART VII"},{"$f":"IF('Longitudinal Joint Density'!$B$67=\"\",\"\",'Longitudinal Joint Density'!$B$67)","v":"Sublot #"},{"$f":"IF('Longitudinal Joint Density'!$F$67=\"\",\"\",'Longitudinal Joint Density'!$F$67)","v":2},{"$f":"IF('Longitudinal Joint Density'!$B$73=\"\",\"\",'Longitudinal Joint Density'!$B$73)","v":"Rice Gravity, Gr:"}]
[59,{"$f":"IF('Longitudinal Joint Density'!$F$75=\"\",\"\",'Longitudinal Joint Density'!$F$75)","v":""},{"$f":"IF('Longitudinal Joint Density'!$B$6=\"\",\"\",'Longitudinal Joint Density'!$B$6)","v":"TEX-207-F, PART VII"},{"$f":"IF('Longitudinal Joint Density'!$B$67=\"\",\"\",'Longitudinal Joint Density'!$B$67)","v":"Sublot #"},{"$f":"IF('Longitudinal Joint Density'!$F$67=\"\",\"\",'Longitudinal Joint Density'!$F$67)","v":2},{"$f":"IF('Longitudinal Joint Density'!$B$75=\"\",\"\",'Longitudinal Joint Density'!$B$75)","v":"Correlated Joint Density"},{"$f":"IF('Longitudinal Joint Density'!$D$75=\"\",\"\",'Longitudinal Joint Density'!$D$75)","v":"Left Mat Edge"}]
[60,{"$f":"IF('Longitudinal Joint Density'!$F$76=\"\",\"\",'Longitudinal Joint Density'!$F$76)","v":""},{"$f":"IF('Longitudinal Joint Density'!$B$6=\"\",\"\",'Longitudinal Joint Density'!$B$6)","v":"TEX-207-F, PART VII"},{"$f":"IF('Longitudinal Joint Density'!$B$67=\"\",\"\",'Longitudinal Joint Density'!$B$67)","v":"Sublot #"},{"$f":"IF('Longitudinal Joint Density'!$F$67=\"\",\"\",'Longitudinal Joint Density'!$F$67)","v":2},{"$f":"IF('Longitudinal Joint Density'!$B$75=\"\",\"\",'Longitudinal Joint Density'!$B$75)","v":"Correlated Joint Density"},{"$f":"IF('Longitudinal Joint Density'!$D$76=\"\",\"\",'Longitudinal Joint Density'!$D$76)","v":"Right Mat Edge"}]
[61,{"$f":"IF('Longitudinal Joint Density'!$G$26=\"\",\"\",'Longitudinal Joint Density'!$G$26)","v":""},{"$f":"IF('Longitudinal Joint Density'!$B$6=\"\",\"\",'Longitudinal Joint Density'!$B$6)","v":"TEX-207-F, PART VII"},{"$f":"IF('Longitudinal Joint Density'!$B$25=\"\",\"\",'Longitudinal Joint Density'!$B$25)","v":"Sublot #"},{"$f":"IF('Longitudinal Joint Density'!$G$25=\"\",\"\",'Longitudinal Joint Density'!$G$25)","v":3},{"$f":"IF('Longitudinal Joint Density'!$B$26=\"\",\"\",'Longitudinal Joint Density'!$B$26)","v":"Station/ID Number"}]
[62,{"$f":"IF('Longitudinal Joint Density'!$G$27=\"\",\"\",'Longitudinal Joint Density'!$G$27)","v":""},{"$f":"IF('Longitudinal Joint Density'!$B$6=\"\",\"\",'Longitudinal Joint Density'!$B$6)","v":"TEX-207-F, PART VII"},{"$f":"IF('Longitudinal Joint Density'!$B$25=\"\",\"\",'Longitudinal Joint Density'!$B$25)","v":"Sublot #"},{"$f":"IF('Longitudinal Joint Density'!$G$25=\"\",\"\",'Longitudinal Joint Density'!$G$25)","v":3},{"$f":"IF('Longitudinal Joint Density'!$B$27=\"\",\"\",'Longitudinal Joint Density'!$B$27)","v":"Travel Lane"}]
[63,{"$f":"IF('Longitudinal Joint Density'!$G$35=\"\",\"\",'Longitudinal Joint Density'!$G$35)","v":""},{"$f":"IF('Longitudinal Joint Density'!$B$6=\"\",\"\",'Longitudinal Joint Density'!$B$6)","v":"TEX-207-F, PART VII"},{"$f":"IF('Longitudinal Joint Density'!$B$33=\"\",\"\",'Longitudinal Joint Density'!$B$33)","v":"Sublot #"},{"$f":"IF('Longitudinal Joint Density'!$G$33=\"\",\"\",'Longitudinal Joint Density'!$G$33)","v":3},{"$f":"IF('Longitudinal Joint Density'!$B$35=\"\",\"\",'Longitudinal Joint Density'!$B$35)","v":"LEFT MAT EDGE LONGITUDINAL JOINT DENSITY"},{"$f":"IF('Longitudinal Joint Density'!$C$35=\"\",\"\",'Longitudinal Joint Density'!$C$35)","v":"Gauge Readings (lbs/cf)"},{"$f":"IF('Longitudinal Joint Density'!$D$35=\"\",\"\",'Longitudinal Joint Density'!$D$35)","v":1}]
[64,{"$f":"IF('Longitudinal Joint Density'!$G$36=\"\",\"\",'Longitudinal Joint Density'!$G$36)","v":""},{"$f":"IF('Longitudinal Joint Density'!$B$6=\"\",\"\",'Longitudinal Joint Density'!$B$6)","v":"TEX-207-F, PART VII"},{"$f":"IF('Longitudinal Joint Density'!$B$33=\"\",\"\",'Longitudinal Joint Density'!$B$33)","v":"Sublot #"},{"$f":"IF('Longitudinal Joint Density'!$G$33=\"\",\"\",'Longitudinal Joint Density'!$G$33)","v":3},{"$f":"IF('Longitudinal Joint Density'!$B$35=\"\",\"\",'Longitudinal Joint Density'!$B$35)","v":"LEFT MAT EDGE LONGITUDINAL JOINT DENSITY"},{"$f":"IF('Longitudinal Joint Density'!$C$35=\"\",\"\",'Longitudinal Joint Density'!$C$35)","v":"Gauge Readings (lbs/cf)"},{"$f":"IF('Longitudinal Joint Density'!$D$36=\"\",\"\",'Longitudinal Joint Density'!$D$36)","v":2}]
[65,{"$f":"IF('Longitudinal Joint Density'!$G$37=\"\",\"\",'Longitudinal Joint Density'!$G$37)","v":""},{"$f":"IF('Longitudinal Joint Density'!$B$6=\"\",\"\",'Longitudinal Joint Density'!$B$6)","v":"TEX-207-F, PART VII"},{"$f":"IF('Longitudinal Joint Density'!$B$33=\"\",\"\",'Longitudinal Joint Density'!$B$33)","v":"Sublot #"},{"$f":"IF('Longitudinal Joint Density'!$G$33=\"\",\"\",'Longitudinal Joint Density'!$G$33)","v":3},{"$f":"IF('Longitudinal Joint Density'!$B$35=\"\",\"\",'Longitudinal Joint Density'!$B$35)","v":"LEFT MAT EDGE LONGITUDINAL JOINT DENSITY"},{"$f":"IF('Longitudinal Joint Density'!$C$35=\"\",\"\",'Longitudinal Joint Density'!$C$35)","v":"Gauge Readings (lbs/cf)"},{"$f":"IF('Longitudinal Joint Density'!$D$37=\"\",\"\",'Longitudinal Joint Density'!$D$37)","v":3}]
[66,{"$f":"IF('Longitudinal Joint Density'!$G$38=\"\",\"\",'Longitudinal Joint Density'!$G$38)","v":""},{"$f":"IF('Longitudinal Joint Density'!$B$6=\"\",\"\",'Longitudinal Joint Density'!$B$6)","v":"TEX-207-F, PART VII"},{"$f":"IF('Longitudinal Joint Density'!$B$33=\"\",\"\",'Longitudinal Joint Density'!$B$33)","v":"Sublot #"},{"$f":"IF('Longitudinal Joint Density'!$G$33=\"\",\"\",'Longitudinal Joint Density'!$G$33)","v":3},{"$f":"IF('Longitudinal Joint Density'!$B$35=\"\",\"\",'Longitudinal Joint Density'!$B$35)","v":"LEFT MAT EDGE LONGITUDINAL JOINT DENSITY"},{"$f":"IF('Longitudinal Joint Density'!$C$35=\"\",\"\",'Longitudinal Joint Density'!$C$35)","v":"Gauge Readings (lbs/cf)"},{"$f":"IF('Longitudinal Joint Density'!$D$38=\"\",\"\",'Longitudinal Joint Density'!$D$38)","v":"Average"}]
[67,{"$f":"IF('Longitudinal Joint Density'!$G$40=\"\",\"\",'Longitudinal Joint Density'!$G$40)","v":""},{"$f":"IF('Longitudinal Joint Density'!$B$6=\"\",\"\",'Longitudinal Joint Density'!$B$6)","v":"TEX-207-F, PART VII"},{"$f":"IF('Longitudinal Joint Density'!$B$33=\"\",\"\",'Longitudinal Joint Density'!$B$33)","v":"Sublot #"},{"$f":"IF('Longitudinal Joint Density'!$G$33=\"\",\"\",'Longitudinal Joint Density'!$G$33)","v":3},{"$f":"IF('Longitudinal Joint Density'!$B$40=\"\",\"\",'Longitudinal Joint Density'!$B$40)","v":"INTERIOR MAT DENSITY"},{"$f":"IF('Longitudinal Joint Density'!$C$40=\"\",\"\",'Longitudinal Joint Density'!$C$40)","v":"Gauge Readings (lbs/cf)"},{"$f":"IF('Longitudinal Joint Density'!$D$40=\"\",\"\",'Longitudinal Joint Density'!$D$40)","v":1}]
[68,{"$f":"IF('Longitudinal Joint Density'!$G$41=\"\",\"\",'Longitudinal Joint Density'!$G$41)","v":""},{"$f":"IF('Longitudinal Joint Density'!$B$6=\"\",\"\",'Longitudinal Joint Density'!$B$6)","v":"TEX-207-F, PART VII"},{"$f":"IF('Longitudinal Joint Density'!$B$33=\"\",\"\",'Longitudinal Joint Density'!$B$33)","v":"Sublot #"},{"$f":"IF('Longitudinal Joint Density'!$G$33=\"\",\"\",'Longitudinal Joint Density'!$G$33)","v":3},{"$f":"IF('Longitudinal Joint Density'!$B$40=\"\",\"\",'Longitudinal Joint Density'!$B$40)","v":"INTERIOR MAT DENSITY"},{"$f":"IF('Longitudinal Joint Density'!$C$40=\"\",\"\",'Longitudinal Joint Density'!$C$40)","v":"Gauge Readings (lbs/cf)"},{"$f":"IF('Longitudinal Joint Density'!$D$41=\"\",\"\",'Longitudinal Joint Density'!$D$41)","v":2}]
[69,{"$f":"IF('Longitudinal Joint Density'!$G$42=\"\",\"\",'Longitudinal Joint Density'!$G$42)","v":""},{"$f":"IF('Longitudinal Joint Density'!$B$6=\"\",\"\",'Longitudinal Joint Density'!$B$6)","v":"TEX-207-F, PART VII"},{"$f":"IF('Longitudinal Joint Density'!$B$33=\"\",\"\",'Longitudinal Joint Density'!$B$33)","v":"Sublot #"},{"$f":"IF('Longitudinal Joint Density'!$G$33=\"\",\"\",'Longitudinal Joint Density'!$G$33)","v":3},{"$f":"IF('Longitudinal Joint Density'!$B$40=\"\",\"\",'Longitudinal Joint Density'!$B$40)","v":"INTERIOR MAT DENSITY"},{"$f":"IF('Longitudinal Joint Density'!$C$40=\"\",\"\",'Longitudinal Joint Density'!$C$40)","v":"Gauge Readings (lbs/cf)"},{"$f":"IF('Longitudinal Joint Density'!$D$42=\"\",\"\",'Longitudinal Joint Density'!$D$42)","v":3}]
[70,{"$f":"IF('Longitudinal Joint Density'!$G$43=\"\",\"\",'Longitudinal Joint Density'!$G$43)","v":""},{"$f":"IF('Longitudinal Joint Density'!$B$6=\"\",\"\",'Longitudinal Joint Density'!$B$6)","v":"TEX-207-F, PART VII"},{"$f":"IF('Longitudinal Joint Density'!$B$33=\"\",\"\",'Longitudinal Joint Density'!$B$33)","v":"Sublot #"},{"$f":"IF('Longitudinal Joint Density'!$G$33=\"\",\"\",'Longitudinal Joint Density'!$G$33)","v":3},{"$f":"IF('Longitudinal Joint Density'!$B$40=\"\",\"\",'Longitudinal Joint Density'!$B$40)","v":"INTERIOR MAT DENSITY"},{"$f":"IF('Longitudinal Joint Density'!$C$40=\"\",\"\",'Longitudinal Joint Density'!$C$40)","v":"Gauge Readings (lbs/cf)"},{"$f":"IF('Longitudinal Joint Density'!$D$43=\"\",\"\",'Longitudinal Joint Density'!$D$43)","v":"Average"}]
[71,{"$f":"IF('Longitudinal Joint Density'!$G$45=\"\",\"\",'Longitudinal Joint Density'!$G$45)","v":""},{"$f":"IF('Longitudinal Joint Density'!$B$6=\"\",\"\",'Longitudinal Joint Density'!$B$6)","v":"TEX-207-F, PART VII"},{"$f":"IF('Longitudinal Joint Density'!$B$33=\"\",\"\",'Longitudinal Joint Density'!$B$33)","v":"Sublot #"},{"$f":"IF('Longitudinal Joint Density'!$G$33=\"\",\"\",'Longitudinal Joint Density'!$G$33)","v":3},{"$f":"IF('Longitudinal Joint Density'!$B$45=\"\",\"\",'Longitudinal Joint Density'!$B$45)","v":"Density Difference Interior & Left Mat Edge"}]
[72,{"$f":"IF('Longitudinal Joint Density'!$G$53=\"\",\"\",'Longitudinal Joint Density'!$G$53)","v":""},{"$f":"IF('Longitudinal Joint Density'!$B$6=\"\",\"\",'Longitudinal Joint Density'!$B$6)","v":"TEX-207-F, PART VII"},{"$f":"IF('Longitudinal Joint Density'!$B$51=\"\",\"\",'Longitudinal Joint Density'!$B$51)","v":"Sublot #"},{"$f":"IF('Longitudinal Joint Density'!$G$51=\"\",\"\",'Longitudinal Joint Density'!$G$51)","v":3},{"$f":"IF('Longitudinal Joint Density'!$B$53=\"\",\"\",'Longitudinal Joint Density'!$B$53)","v":"RIGHT MAT EDGE LONGITUDINAL JOINT DENSITY"},{"$f":"IF('Longitudinal Joint Density'!$C$53=\"\",\"\",'Longitudinal Joint Density'!$C$53)","v":"Gauge Readings (lbs/cf)"},{"$f":"IF('Longitudinal Joint Density'!$D$53=\"\",\"\",'Longitudinal Joint Density'!$D$53)","v":1}]
[73,{"$f":"IF('Longitudinal Joint Density'!$G$54=\"\",\"\",'Longitudinal Joint Density'!$G$54)","v":""},{"$f":"IF('Longitudinal Joint Density'!$B$6=\"\",\"\",'Longitudinal Joint Density'!$B$6)","v":"TEX-207-F, PART VII"},{"$f":"IF('Longitudinal Joint Density'!$B$51=\"\",\"\",'Longitudinal Joint Density'!$B$51)","v":"Sublot #"},{"$f":"IF('Longitudinal Joint Density'!$G$51=\"\",\"\",'Longitudinal Joint Density'!$G$51)","v":3},{"$f":"IF('Longitudinal Joint Density'!$B$53=\"\",\"\",'Longitudinal Joint Density'!$B$53)","v":"RIGHT MAT EDGE LONGITUDINAL JOINT DENSITY"},{"$f":"IF('Longitudinal Joint Density'!$C$53=\"\",\"\",'Longitudinal Joint Density'!$C$53)","v":"Gauge Readings (lbs/cf)"},{"$f":"IF('Longitudinal Joint Density'!$D$54=\"\",\"\",'Longitudinal Joint Density'!$D$54)","v":2}]
[74,{"$f":"IF('Longitudinal Joint Density'!$G$55=\"\",\"\",'Longitudinal Joint Density'!$G$55)","v":""},{"$f":"IF('Longitudinal Joint Density'!$B$6=\"\",\"\",'Longitudinal Joint Density'!$B$6)","v":"TEX-207-F, PART VII"},{"$f":"IF('Longitudinal Joint Density'!$B$51=\"\",\"\",'Longitudinal Joint Density'!$B$51)","v":"Sublot #"},{"$f":"IF('Longitudinal Joint Density'!$G$51=\"\",\"\",'Longitudinal Joint Density'!$G$51)","v":3},{"$f":"IF('Longitudinal Joint Density'!$B$53=\"\",\"\",'Longitudinal Joint Density'!$B$53)","v":"RIGHT MAT EDGE LONGITUDINAL JOINT DENSITY"},{"$f":"IF('Longitudinal Joint Density'!$C$53=\"\",\"\",'Longitudinal Joint Density'!$C$53)","v":"Gauge Readings (lbs/cf)"},{"$f":"IF('Longitudinal Joint Density'!$D$55=\"\",\"\",'Longitudinal Joint Density'!$D$55)","v":3}]
[75,{"$f":"IF('Longitudinal Joint Density'!$G$56=\"\",\"\",'Longitudinal Joint Density'!$G$56)","v":""},{"$f":"IF('Longitudinal Joint Density'!$B$6=\"\",\"\",'Longitudinal Joint Density'!$B$6)","v":"TEX-207-F, PART VII"},{"$f":"IF('Longitudinal Joint Density'!$B$51=\"\",\"\",'Longitudinal Joint Density'!$B$51)","v":"Sublot #"},{"$f":"IF('Longitudinal Joint Density'!$G$51=\"\",\"\",'Longitudinal Joint Density'!$G$51)","v":3},{"$f":"IF('Longitudinal Joint Density'!$B$53=\"\",\"\",'Longitudinal Joint Density'!$B$53)","v":"RIGHT MAT EDGE LONGITUDINAL JOINT DENSITY"},{"$f":"IF('Longitudinal Joint Density'!$C$53=\"\",\"\",'Longitudinal Joint Density'!$C$53)","v":"Gauge Readings (lbs/cf)"},{"$f":"IF('Longitudinal Joint Density'!$D$56=\"\",\"\",'Longitudinal Joint Density'!$D$56)","v":"Average"}]
[76,{"$f":"IF('Longitudinal Joint Density'!$G$58=\"\",\"\",'Longitudinal Joint Density'!$G$58)","v":""},{"$f":"IF('Longitudinal Joint Density'!$B$6=\"\",\"\",'Longitudinal Joint Density'!$B$6)","v":"TEX-207-F, PART VII"},{"$f":"IF('Longitudinal Joint Density'!$B$51=\"\",\"\",'Longitudinal Joint Density'!$B$51)","v":"Sublot #"},{"$f":"IF('Longitudinal Joint Density'!$G$51=\"\",\"\",'Longitudinal Joint Density'!$G$51)","v":3},{"$f":"IF('Longitudinal Joint Density'!$B$58=\"\",\"\",'Longitudinal Joint Density'!$B$58)","v":"INTERIOR MAT DENSITY"},{"$f":"IF('Longitudinal Joint Density'!$C$58=\"\",\"\",'Longitudinal Joint Density'!$C$58)","v":"Gauge Readings (lbs/cf)"},{"$f":"IF('Longitudinal Joint Density'!$D$58=\"\",\"\",'Longitudinal Joint Density'!$D$58)","v":1}]
[77,{"$f":"IF('Longitudinal Joint Density'!$G$59=\"\",\"\",'Longitudinal Joint Density'!$G$59)","v":""},{"$f":"IF('Longitudinal Joint Density'!$B$6=\"\",\"\",'Longitudinal Joint Density'!$B$6)","v":"TEX-207-F, PART VII"},{"$f":"IF('Longitudinal Joint Density'!$B$51=\"\",\"\",'Longitudinal Joint Density'!$B$51)","v":"Sublot #"},{"$f":"IF('Longitudinal Joint Density'!$G$51=\"\",\"\",'Longitudinal Joint Density'!$G$51)","v":3},{"$f":"IF('Longitudinal Joint Density'!$B$58=\"\",\"\",'Longitudinal Joint Density'!$B$58)","v":"INTERIOR MAT DENSITY"},{"$f":"IF('Longitudinal Joint Density'!$C$58=\"\",\"\",'Longitudinal Joint Density'!$C$58)","v":"Gauge Readings (lbs/cf)"},{"$f":"IF('Longitudinal Joint Density'!$D$59=\"\",\"\",'Longitudinal Joint Density'!$D$59)","v":2}]
[78,{"$f":"IF('Longitudinal Joint Density'!$G$60=\"\",\"\",'Longitudinal Joint Density'!$G$60)","v":""},{"$f":"IF('Longitudinal Joint Density'!$B$6=\"\",\"\",'Longitudinal Joint Density'!$B$6)","v":"TEX-207-F, PART VII"},{"$f":"IF('Longitudinal Joint Density'!$B$51=\"\",\"\",'Longitudinal Joint Density'!$B$51)","v":"Sublot #"},{"$f":"IF('Longitudinal Joint Density'!$G$51=\"\",\"\",'Longitudinal Joint Density'!$G$51)","v":3},{"$f":"IF('Longitudinal Joint Density'!$B$58=\"\",\"\",'Longitudinal Joint Density'!$B$58)","v":"INTERIOR MAT DENSITY"},{"$f":"IF('Longitudinal Joint Density'!$C$58=\"\",\"\",'Longitudinal Joint Density'!$C$58)","v":"Gauge Readings (lbs/cf)"},{"$f":"IF('Longitudinal Joint Density'!$D$60=\"\",\"\",'Longitudinal Joint Density'!$D$60)","v":3}]
[79,{"$f":"IF('Longitudinal Joint Density'!$G$61=\"\",\"\",'Longitudinal Joint Density'!$G$61)","v":""},{"$f":"IF('Longitudinal Joint Density'!$B$6=\"\",\"\",'Longitudinal Joint Density'!$B$6)","v":"TEX-207-F, PART VII"},{"$f":"IF('Longitudinal Joint Density'!$B$51=\"\",\"\",'Longitudinal Joint Density'!$B$51)","v":"Sublot #"},{"$f":"IF('Longitudinal Joint Density'!$G$51=\"\",\"\",'Longitudinal Joint Density'!$G$51)","v":3},{"$f":"IF('Longitudinal Joint Density'!$B$58=\"\",\"\",'Longitudinal Joint Density'!$B$58)","v":"INTERIOR MAT DENSITY"},{"$f":"IF('Longitudinal Joint Density'!$C$58=\"\",\"\",'Longitudinal Joint Density'!$C$58)","v":"Gauge Readings (lbs/cf)"},{"$f":"IF('Longitudinal Joint Density'!$D$61=\"\",\"\",'Longitudinal Joint Density'!$D$61)","v":"Average"}]
[80,{"$f":"IF('Longitudinal Joint Density'!$G$63=\"\",\"\",'Longitudinal Joint Density'!$G$63)","v":""},{"$f":"IF('Longitudinal Joint Density'!$B$6=\"\",\"\",'Longitudinal Joint Density'!$B$6)","v":"TEX-207-F, PART VII"},{"$f":"IF('Longitudinal Joint Density'!$B$51=\"\",\"\",'Longitudinal Joint Density'!$B$51)","v":"Sublot #"},{"$f":"IF('Longitudinal Joint Density'!$G$51=\"\",\"\",'Longitudinal Joint Density'!$G$51)","v":3},{"$f":"IF('Longitudinal Joint Density'!$B$63=\"\",\"\",'Longitudinal Joint Density'!$B$63)","v":"Density Difference Interior & Right Mat Edge"}]
[81,{"$f":"IF('Longitudinal Joint Density'!$G$69=\"\",\"\",'Longitudinal Joint Density'!$G$69)","v":""},{"$f":"IF('Longitudinal Joint Density'!$B$6=\"\",\"\",'Longitudinal Joint Density'!$B$6)","v":"TEX-207-F, PART VII"},{"$f":"IF('Longitudinal Joint Density'!$B$67=\"\",\"\",'Longitudinal Joint Density'!$B$67)","v":"Sublot #"},{"$f":"IF('Longitudinal Joint Density'!$G$67=\"\",\"\",'Longitudinal Joint Density'!$G$67)","v":3},{"$f":"IF('Longitudinal Joint Density'!$B$69=\"\",\"\",'Longitudinal Joint Density'!$B$69)","v":"Interior Mat Density"},{"$f":"IF('Longitudinal Joint Density'!$C$69=\"\",\"\",'Longitudinal Joint Density'!$C$69)","v":"Roadway Core Bulk Specific Gravity"},{"$f":"IF('Longitudinal Joint Density'!$D$69=\"\",\"\",'Longitudinal Joint Density'!$D$69)","v":"Core # 1 Ga"}]
[82,{"$f":"IF('Longitudinal Joint Density'!$G$70=\"\",\"\",'Longitudinal Joint Density'!$G$70)","v":""},{"$f":"IF('Longitudinal Joint Density'!$B$6=\"\",\"\",'Longitudinal Joint Density'!$B$6)","v":"TEX-207-F, PART VII"},{"$f":"IF('Longitudinal Joint Density'!$B$67=\"\",\"\",'Longitudinal Joint Density'!$B$67)","v":"Sublot #"},{"$f":"IF('Longitudinal Joint Density'!$G$67=\"\",\"\",'Longitudinal Joint Density'!$G$67)","v":3},{"$f":"IF('Longitudinal Joint Density'!$B$69=\"\",\"\",'Longitudinal Joint Density'!$B$69)","v":"Interior Mat Density"},{"$f":"IF('Longitudinal Joint Density'!$C$69=\"\",\"\",'Longitudinal Joint Density'!$C$69)","v":"Roadway Core Bulk Specific Gravity"},{"$f":"IF('Longitudinal Joint Density'!$D$70=\"\",\"\",'Longitudinal Joint Density'!$D$70)","v":"Core # 2 Ga"}]
[83,{"$f":"IF('Longitudinal Joint Density'!$G$71=\"\",\"\",'Longitudinal Joint Density'!$G$71)","v":""},{"$f":"IF('Longitudinal Joint Density'!$B$6=\"\",\"\",'Longitudinal Joint Density'!$B$6)","v":"TEX-207-F, PART VII"},{"$f":"IF('Longitudinal Joint Density'!$B$67=\"\",\"\",'Longitudinal Joint Density'!$B$67)","v":"Sublot #"},{"$f":"IF('Longitudinal Joint Density'!$G$67=\"\",\"\",'Longitudinal Joint Density'!$G$67)","v":3},{"$f":"IF('Longitudinal Joint Density'!$B$69=\"\",\"\",'Longitudinal Joint Density'!$B$69)","v":"Interior Mat Density"},{"$f":"IF('Longitudinal Joint Density'!$C$69=\"\",\"\",'Longitudinal Joint Density'!$C$69)","v":"Roadway Core Bulk Specific Gravity"},{"$f":"IF('Longitudinal Joint Density'!$D$71=\"\",\"\",'Longitudinal Joint Density'!$D$71)","v":"Average Ga"}]
[84,{"$f":"IF('Longitudinal Joint Density'!$G$73=\"\",\"\",'Longitudinal Joint Density'!$G$73)","v":""},{"$f":"IF('Longitudinal Joint Density'!$B$6=\"\",\"\",'Longitudinal Joint Density'!$B$6)","v":"TEX-207-F, PART VII"},{"$f":"IF('Longitudinal Joint Density'!$B$67=\"\",\"\",'Longitudinal Joint Density'!$B$67)","v":"Sublot #"},{"$f":"IF('Longitudinal Joint Density'!$G$67=\"\",\"\",'Longitudinal Joint Density'!$G$67)","v":3},{"$f":"IF('Longitudinal Joint Density'!$B$73=\"\",\"\",'Longitudinal Joint Density'!$B$73)","v":"Rice Gravity, Gr:"}]
[85,{"$f":"IF('Longitudinal Joint Density'!$G$75=\"\",\"\",'Longitudinal Joint Density'!$G$75)","v":""},{"$f":"IF('Longitudinal Joint Density'!$B$6=\"\",\"\",'Longitudinal Joint Density'!$B$6)","v":"TEX-207-F, PART VII"},{"$f":"IF('Longitudinal Joint Density'!$B$67=\"\",\"\",'Longitudinal Joint Density'!$B$67)","v":"Sublot #"},{"$f":"IF('Longitudinal Joint Density'!$G$67=\"\",\"\",'Longitudinal Joint Density'!$G$67)","v":3},{"$f":"IF('Longitudinal Joint Density'!$B$75=\"\",\"\",'Longitudinal Joint Density'!$B$75)","v":"Correlated Joint Density"},{"$f":"IF('Longitudinal Joint Density'!$D$75=\"\",\"\",'Longitudinal Joint Density'!$D$75)","v":"Left Mat Edge"}]
[86,{"$f":"IF('Longitudinal Joint Density'!$G$76=\"\",\"\",'Longitudinal Joint Density'!$G$76)","v":""},{"$f":"IF('Longitudinal Joint Density'!$B$6=\"\",\"\",'Longitudinal Joint Density'!$B$6)","v":"TEX-207-F, PART VII"},{"$f":"IF('Longitudinal Joint Density'!$B$67=\"\",\"\",'Longitudinal Joint Density'!$B$67)","v":"Sublot #"},{"$f":"IF('Longitudinal Joint Density'!$G$67=\"\",\"\",'Longitudinal Joint Density'!$G$67)","v":3},{"$f":"IF('Longitudinal Joint Density'!$B$75=\"\",\"\",'Longitudinal Joint Density'!$B$75)","v":"Correlated Joint Density"},{"$f":"IF('Longitudinal Joint Density'!$D$76=\"\",\"\",'Longitudinal Joint Density'!$D$76)","v":"Right Mat Edge"}]
[87,{"$f":"IF('Longitudinal Joint Density'!$H$26=\"\",\"\",'Longitudinal Joint Density'!$H$26)","v":""},{"$f":"IF('Longitudinal Joint Density'!$B$6=\"\",\"\",'Longitudinal Joint Density'!$B$6)","v":"TEX-207-F, PART VII"},{"$f":"IF('Longitudinal Joint Density'!$B$25=\"\",\"\",'Longitudinal Joint Density'!$B$25)","v":"Sublot #"},{"$f":"IF('Longitudinal Joint Density'!$H$25=\"\",\"\",'Longitudinal Joint Density'!$H$25)","v":4},{"$f":"IF('Longitudinal Joint Density'!$B$26=\"\",\"\",'Longitudinal Joint Density'!$B$26)","v":"Station/ID Number"}]
[88,{"$f":"IF('Longitudinal Joint Density'!$H$27=\"\",\"\",'Longitudinal Joint Density'!$H$27)","v":""},{"$f":"IF('Longitudinal Joint Density'!$B$6=\"\",\"\",'Longitudinal Joint Density'!$B$6)","v":"TEX-207-F, PART VII"},{"$f":"IF('Longitudinal Joint Density'!$B$25=\"\",\"\",'Longitudinal Joint Density'!$B$25)","v":"Sublot #"},{"$f":"IF('Longitudinal Joint Density'!$H$25=\"\",\"\",'Longitudinal Joint Density'!$H$25)","v":4},{"$f":"IF('Longitudinal Joint Density'!$B$27=\"\",\"\",'Longitudinal Joint Density'!$B$27)","v":"Travel Lane"}]
[89,{"$f":"IF('Longitudinal Joint Density'!$H$35=\"\",\"\",'Longitudinal Joint Density'!$H$35)","v":""},{"$f":"IF('Longitudinal Joint Density'!$B$6=\"\",\"\",'Longitudinal Joint Density'!$B$6)","v":"TEX-207-F, PART VII"},{"$f":"IF('Longitudinal Joint Density'!$B$33=\"\",\"\",'Longitudinal Joint Density'!$B$33)","v":"Sublot #"},{"$f":"IF('Longitudinal Joint Density'!$H$33=\"\",\"\",'Longitudinal Joint Density'!$H$33)","v":4},{"$f":"IF('Longitudinal Joint Density'!$B$35=\"\",\"\",'Longitudinal Joint Density'!$B$35)","v":"LEFT MAT EDGE LONGITUDINAL JOINT DENSITY"},{"$f":"IF('Longitudinal Joint Density'!$C$35=\"\",\"\",'Longitudinal Joint Density'!$C$35)","v":"Gauge Readings (lbs/cf)"},{"$f":"IF('Longitudinal Joint Density'!$D$35=\"\",\"\",'Longitudinal Joint Density'!$D$35)","v":1}]
[90,{"$f":"IF('Longitudinal Joint Density'!$H$36=\"\",\"\",'Longitudinal Joint Density'!$H$36)","v":""},{"$f":"IF('Longitudinal Joint Density'!$B$6=\"\",\"\",'Longitudinal Joint Density'!$B$6)","v":"TEX-207-F, PART VII"},{"$f":"IF('Longitudinal Joint Density'!$B$33=\"\",\"\",'Longitudinal Joint Density'!$B$33)","v":"Sublot #"},{"$f":"IF('Longitudinal Joint Density'!$H$33=\"\",\"\",'Longitudinal Joint Density'!$H$33)","v":4},{"$f":"IF('Longitudinal Joint Density'!$B$35=\"\",\"\",'Longitudinal Joint Density'!$B$35)","v":"LEFT MAT EDGE LONGITUDINAL JOINT DENSITY"},{"$f":"IF('Longitudinal Joint Density'!$C$35=\"\",\"\",'Longitudinal Joint Density'!$C$35)","v":"Gauge Readings (lbs/cf)"},{"$f":"IF('Longitudinal Joint Density'!$D$36=\"\",\"\",'Longitudinal Joint Density'!$D$36)","v":2}]
[91,{"$f":"IF('Longitudinal Joint Density'!$H$37=\"\",\"\",'Longitudinal Joint Density'!$H$37)","v":""},{"$f":"IF('Longitudinal Joint Density'!$B$6=\"\",\"\",'Longitudinal Joint Density'!$B$6)","v":"TEX-207-F, PART VII"},{"$f":"IF('Longitudinal Joint Density'!$B$33=\"\",\"\",'Longitudinal Joint Density'!$B$33)","v":"Sublot #"},{"$f":"IF('Longitudinal Joint Density'!$H$33=\"\",\"\",'Longitudinal Joint Density'!$H$33)","v":4},{"$f":"IF('Longitudinal Joint Density'!$B$35=\"\",\"\",'Longitudinal Joint Density'!$B$35)","v":"LEFT MAT EDGE LONGITUDINAL JOINT DENSITY"},{"$f":"IF('Longitudinal Joint Density'!$C$35=\"\",\"\",'Longitudinal Joint Density'!$C$35)","v":"Gauge Readings (lbs/cf)"},{"$f":"IF('Longitudinal Joint Density'!$D$37=\"\",\"\",'Longitudinal Joint Density'!$D$37)","v":3}]
[92,{"$f":"IF('Longitudinal Joint Density'!$H$38=\"\",\"\",'Longitudinal Joint Density'!$H$38)","v":""},{"$f":"IF('Longitudinal Joint Density'!$B$6=\"\",\"\",'Longitudinal Joint Density'!$B$6)","v":"TEX-207-F, PART VII"},{"$f":"IF('Longitudinal Joint Density'!$B$33=\"\",\"\",'Longitudinal Joint Density'!$B$33)","v":"Sublot #"},{"$f":"IF('Longitudinal Joint Density'!$H$33=\"\",\"\",'Longitudinal Joint Density'!$H$33)","v":4},{"$f":"IF('Longitudinal Joint Density'!$B$35=\"\",\"\",'Longitudinal Joint Density'!$B$35)","v":"LEFT MAT EDGE LONGITUDINAL JOINT DENSITY"},{"$f":"IF('Longitudinal Joint Density'!$C$35=\"\",\"\",'Longitudinal Joint Density'!$C$35)","v":"Gauge Readings (lbs/cf)"},{"$f":"IF('Longitudinal Joint Density'!$D$38=\"\",\"\",'Longitudinal Joint Density'!$D$38)","v":"Average"}]
[93,{"$f":"IF('Longitudinal Joint Density'!$H$40=\"\",\"\",'Longitudinal Joint Density'!$H$40)","v":""},{"$f":"IF('Longitudinal Joint Density'!$B$6=\"\",\"\",'Longitudinal Joint Density'!$B$6)","v":"TEX-207-F, PART VII"},{"$f":"IF('Longitudinal Joint Density'!$B$33=\"\",\"\",'Longitudinal Joint Density'!$B$33)","v":"Sublot #"},{"$f":"IF('Longitudinal Joint Density'!$H$33=\"\",\"\",'Longitudinal Joint Density'!$H$33)","v":4},{"$f":"IF('Longitudinal Joint Density'!$B$40=\"\",\"\",'Longitudinal Joint Density'!$B$40)","v":"INTERIOR MAT DENSITY"},{"$f":"IF('Longitudinal Joint Density'!$C$40=\"\",\"\",'Longitudinal Joint Density'!$C$40)","v":"Gauge Readings (lbs/cf)"},{"$f":"IF('Longitudinal Joint Density'!$D$40=\"\",\"\",'Longitudinal Joint Density'!$D$40)","v":1}]
[94,{"$f":"IF('Longitudinal Joint Density'!$H$41=\"\",\"\",'Longitudinal Joint Density'!$H$41)","v":""},{"$f":"IF('Longitudinal Joint Density'!$B$6=\"\",\"\",'Longitudinal Joint Density'!$B$6)","v":"TEX-207-F, PART VII"},{"$f":"IF('Longitudinal Joint Density'!$B$33=\"\",\"\",'Longitudinal Joint Density'!$B$33)","v":"Sublot #"},{"$f":"IF('Longitudinal Joint Density'!$H$33=\"\",\"\",'Longitudinal Joint Density'!$H$33)","v":4},{"$f":"IF('Longitudinal Joint Density'!$B$40=\"\",\"\",'Longitudinal Joint Density'!$B$40)","v":"INTERIOR MAT DENSITY"},{"$f":"IF('Longitudinal Joint Density'!$C$40=\"\",\"\",'Longitudinal Joint Density'!$C$40)","v":"Gauge Readings (lbs/cf)"},{"$f":"IF('Longitudinal Joint Density'!$D$41=\"\",\"\",'Longitudinal Joint Density'!$D$41)","v":2}]
[95,{"$f":"IF('Longitudinal Joint Density'!$H$42=\"\",\"\",'Longitudinal Joint Density'!$H$42)","v":""},{"$f":"IF('Longitudinal Joint Density'!$B$6=\"\",\"\",'Longitudinal Joint Density'!$B$6)","v":"TEX-207-F, PART VII"},{"$f":"IF('Longitudinal Joint Density'!$B$33=\"\",\"\",'Longitudinal Joint Density'!$B$33)","v":"Sublot #"},{"$f":"IF('Longitudinal Joint Density'!$H$33=\"\",\"\",'Longitudinal Joint Density'!$H$33)","v":4},{"$f":"IF('Longitudinal Joint Density'!$B$40=\"\",\"\",'Longitudinal Joint Density'!$B$40)","v":"INTERIOR MAT DENSITY"},{"$f":"IF('Longitudinal Joint Density'!$C$40=\"\",\"\",'Longitudinal Joint Density'!$C$40)","v":"Gauge Readings (lbs/cf)"},{"$f":"IF('Longitudinal Joint Density'!$D$42=\"\",\"\",'Longitudinal Joint Density'!$D$42)","v":3}]
[96,{"$f":"IF('Longitudinal Joint Density'!$H$43=\"\",\"\",'Longitudinal Joint Density'!$H$43)","v":""},{"$f":"IF('Longitudinal Joint Density'!$B$6=\"\",\"\",'Longitudinal Joint Density'!$B$6)","v":"TEX-207-F, PART VII"},{"$f":"IF('Longitudinal Joint Density'!$B$33=\"\",\"\",'Longitudinal Joint Density'!$B$33)","v":"Sublot #"},{"$f":"IF('Longitudinal Joint Density'!$H$33=\"\",\"\",'Longitudinal Joint Density'!$H$33)","v":4},{"$f":"IF('Longitudinal Joint Density'!$B$40=\"\",\"\",'Longitudinal Joint Density'!$B$40)","v":"INTERIOR MAT DENSITY"},{"$f":"IF('Longitudinal Joint Density'!$C$40=\"\",\"\",'Longitudinal Joint Density'!$C$40)","v":"Gauge Readings (lbs/cf)"},{"$f":"IF('Longitudinal Joint Density'!$D$43=\"\",\"\",'Longitudinal Joint Density'!$D$43)","v":"Average"}]
[97,{"$f":"IF('Longitudinal Joint Density'!$H$45=\"\",\"\",'Longitudinal Joint Density'!$H$45)","v":""},{"$f":"IF('Longitudinal Joint Density'!$B$6=\"\",\"\",'Longitudinal Joint Density'!$B$6)","v":"TEX-207-F, PART VII"},{"$f":"IF('Longitudinal Joint Density'!$B$33=\"\",\"\",'Longitudinal Joint Density'!$B$33)","v":"Sublot #"},{"$f":"IF('Longitudinal Joint Density'!$H$33=\"\",\"\",'Longitudinal Joint Density'!$H$33)","v":4},{"$f":"IF('Longitudinal Joint Density'!$B$45=\"\",\"\",'Longitudinal Joint Density'!$B$45)","v":"Density Difference Interior & Left Mat Edge"}]
[98,{"$f":"IF('Longitudinal Joint Density'!$H$53=\"\",\"\",'Longitudinal Joint Density'!$H$53)","v":""},{"$f":"IF('Longitudinal Joint Density'!$B$6=\"\",\"\",'Longitudinal Joint Density'!$B$6)","v":"TEX-207-F, PART VII"},{"$f":"IF('Longitudinal Joint Density'!$B$51=\"\",\"\",'Longitudinal Joint Density'!$B$51)","v":"Sublot #"},{"$f":"IF('Longitudinal Joint Density'!$H$51=\"\",\"\",'Longitudinal Joint Density'!$H$51)","v":4},{"$f":"IF('Longitudinal Joint Density'!$B$53=\"\",\"\",'Longitudinal Joint Density'!$B$53)","v":"RIGHT MAT EDGE LONGITUDINAL JOINT DENSITY"},{"$f":"IF('Longitudinal Joint Density'!$C$53=\"\",\"\",'Longitudinal Joint Density'!$C$53)","v":"Gauge Readings (lbs/cf)"},{"$f":"IF('Longitudinal Joint Density'!$D$53=\"\",\"\",'Longitudinal Joint Density'!$D$53)","v":1}]
[99,{"$f":"IF('Longitudinal Joint Density'!$H$54=\"\",\"\",'Longitudinal Joint Density'!$H$54)","v":""},{"$f":"IF('Longitudinal Joint Density'!$B$6=\"\",\"\",'Longitudinal Joint Density'!$B$6)","v":"TEX-207-F, PART VII"},{"$f":"IF('Longitudinal Joint Density'!$B$51=\"\",\"\",'Longitudinal Joint Density'!$B$51)","v":"Sublot #"},{"$f":"IF('Longitudinal Joint Density'!$H$51=\"\",\"\",'Longitudinal Joint Density'!$H$51)","v":4},{"$f":"IF('Longitudinal Joint Density'!$B$53=\"\",\"\",'Longitudinal Joint Density'!$B$53)","v":"RIGHT MAT EDGE LONGITUDINAL JOINT DENSITY"},{"$f":"IF('Longitudinal Joint Density'!$C$53=\"\",\"\",'Longitudinal Joint Density'!$C$53)","v":"Gauge Readings (lbs/cf)"},{"$f":"IF('Longitudinal Joint Density'!$D$54=\"\",\"\",'Longitudinal Joint Density'!$D$54)","v":2}]
[100,{"$f":"IF('Longitudinal Joint Density'!$H$55=\"\",\"\",'Longitudinal Joint Density'!$H$55)","v":""},{"$f":"IF('Longitudinal Joint Density'!$B$6=\"\",\"\",'Longitudinal Joint Density'!$B$6)","v":"TEX-207-F, PART VII"},{"$f":"IF('Longitudinal Joint Density'!$B$51=\"\",\"\",'Longitudinal Joint Density'!$B$51)","v":"Sublot #"},{"$f":"IF('Longitudinal Joint Density'!$H$51=\"\",\"\",'Longitudinal Joint Density'!$H$51)","v":4},{"$f":"IF('Longitudinal Joint Density'!$B$53=\"\",\"\",'Longitudinal Joint Density'!$B$53)","v":"RIGHT MAT EDGE LONGITUDINAL JOINT DENSITY"},{"$f":"IF('Longitudinal Joint Density'!$C$53=\"\",\"\",'Longitudinal Joint Density'!$C$53)","v":"Gauge Readings (lbs/cf)"},{"$f":"IF('Longitudinal Joint Density'!$D$55=\"\",\"\",'Longitudinal Joint Density'!$D$55)","v":3}]
[101,{"$f":"IF('Longitudinal Joint Density'!$H$56=\"\",\"\",'Longitudinal Joint Density'!$H$56)","v":""},{"$f":"IF('Longitudinal Joint Density'!$B$6=\"\",\"\",'Longitudinal Joint Density'!$B$6)","v":"TEX-207-F, PART VII"},{"$f":"IF('Longitudinal Joint Density'!$B$51=\"\",\"\",'Longitudinal Joint Density'!$B$51)","v":"Sublot #"},{"$f":"IF('Longitudinal Joint Density'!$H$51=\"\",\"\",'Longitudinal Joint Density'!$H$51)","v":4},{"$f":"IF('Longitudinal Joint Density'!$B$53=\"\",\"\",'Longitudinal Joint Density'!$B$53)","v":"RIGHT MAT EDGE LONGITUDINAL JOINT DENSITY"},{"$f":"IF('Longitudinal Joint Density'!$C$53=\"\",\"\",'Longitudinal Joint Density'!$C$53)","v":"Gauge Readings (lbs/cf)"},{"$f":"IF('Longitudinal Joint Density'!$D$56=\"\",\"\",'Longitudinal Joint Density'!$D$56)","v":"Average"}]
[102,{"$f":"IF('Longitudinal Joint Density'!$H$58=\"\",\"\",'Longitudinal Joint Density'!$H$58)","v":""},{"$f":"IF('Longitudinal Joint Density'!$B$6=\"\",\"\",'Longitudinal Joint Density'!$B$6)","v":"TEX-207-F, PART VII"},{"$f":"IF('Longitudinal Joint Density'!$B$51=\"\",\"\",'Longitudinal Joint Density'!$B$51)","v":"Sublot #"},{"$f":"IF('Longitudinal Joint Density'!$H$51=\"\",\"\",'Longitudinal Joint Density'!$H$51)","v":4},{"$f":"IF('Longitudinal Joint Density'!$B$58=\"\",\"\",'Longitudinal Joint Density'!$B$58)","v":"INTERIOR MAT DENSITY"},{"$f":"IF('Longitudinal Joint Density'!$C$58=\"\",\"\",'Longitudinal Joint Density'!$C$58)","v":"Gauge Readings (lbs/cf)"},{"$f":"IF('Longitudinal Joint Density'!$D$58=\"\",\"\",'Longitudinal Joint Density'!$D$58)","v":1}]
[103,{"$f":"IF('Longitudinal Joint Density'!$H$59=\"\",\"\",'Longitudinal Joint Density'!$H$59)","v":""},{"$f":"IF('Longitudinal Joint Density'!$B$6=\"\",\"\",'Longitudinal Joint Density'!$B$6)","v":"TEX-207-F, PART VII"},{"$f":"IF('Longitudinal Joint Density'!$B$51=\"\",\"\",'Longitudinal Joint Density'!$B$51)","v":"Sublot #"},{"$f":"IF('Longitudinal Joint Density'!$H$51=\"\",\"\",'Longitudinal Joint Density'!$H$51)","v":4},{"$f":"IF('Longitudinal Joint Density'!$B$58=\"\",\"\",'Longitudinal Joint Density'!$B$58)","v":"INTERIOR MAT DENSITY"},{"$f":"IF('Longitudinal Joint Density'!$C$58=\"\",\"\",'Longitudinal Joint Density'!$C$58)","v":"Gauge Readings (lbs/cf)"},{"$f":"IF('Longitudinal Joint Density'!$D$59=\"\",\"\",'Longitudinal Joint Density'!$D$59)","v":2}]
[104,{"$f":"IF('Longitudinal Joint Density'!$H$60=\"\",\"\",'Longitudinal Joint Density'!$H$60)","v":""},{"$f":"IF('Longitudinal Joint Density'!$B$6=\"\",\"\",'Longitudinal Joint Density'!$B$6)","v":"TEX-207-F, PART VII"},{"$f":"IF('Longitudinal Joint Density'!$B$51=\"\",\"\",'Longitudinal Joint Density'!$B$51)","v":"Sublot #"},{"$f":"IF('Longitudinal Joint Density'!$H$51=\"\",\"\",'Longitudinal Joint Density'!$H$51)","v":4},{"$f":"IF('Longitudinal Joint Density'!$B$58=\"\",\"\",'Longitudinal Joint Density'!$B$58)","v":"INTERIOR MAT DENSITY"},{"$f":"IF('Longitudinal Joint Density'!$C$58=\"\",\"\",'Longitudinal Joint Density'!$C$58)","v":"Gauge Readings (lbs/cf)"},{"$f":"IF('Longitudinal Joint Density'!$D$60=\"\",\"\",'Longitudinal Joint Density'!$D$60)","v":3}]
[105,{"$f":"IF('Longitudinal Joint Density'!$H$61=\"\",\"\",'Longitudinal Joint Density'!$H$61)","v":""},{"$f":"IF('Longitudinal Joint Density'!$B$6=\"\",\"\",'Longitudinal Joint Density'!$B$6)","v":"TEX-207-F, PART VII"},{"$f":"IF('Longitudinal Joint Density'!$B$51=\"\",\"\",'Longitudinal Joint Density'!$B$51)","v":"Sublot #"},{"$f":"IF('Longitudinal Joint Density'!$H$51=\"\",\"\",'Longitudinal Joint Density'!$H$51)","v":4},{"$f":"IF('Longitudinal Joint Density'!$B$58=\"\",\"\",'Longitudinal Joint Density'!$B$58)","v":"INTERIOR MAT DENSITY"},{"$f":"IF('Longitudinal Joint Density'!$C$58=\"\",\"\",'Longitudinal Joint Density'!$C$58)","v":"Gauge Readings (lbs/cf)"},{"$f":"IF('Longitudinal Joint Density'!$D$61=\"\",\"\",'Longitudinal Joint Density'!$D$61)","v":"Average"}]
[106,{"$f":"IF('Longitudinal Joint Density'!$H$63=\"\",\"\",'Longitudinal Joint Density'!$H$63)","v":""},{"$f":"IF('Longitudinal Joint Density'!$B$6=\"\",\"\",'Longitudinal Joint Density'!$B$6)","v":"TEX-207-F, PART VII"},{"$f":"IF('Longitudinal Joint Density'!$B$51=\"\",\"\",'Longitudinal Joint Density'!$B$51)","v":"Sublot #"},{"$f":"IF('Longitudinal Joint Density'!$H$51=\"\",\"\",'Longitudinal Joint Density'!$H$51)","v":4},{"$f":"IF('Longitudinal Joint Density'!$B$63=\"\",\"\",'Longitudinal Joint Density'!$B$63)","v":"Density Difference Interior & Right Mat Edge"}]
[107,{"$f":"IF('Longitudinal Joint Density'!$H$69=\"\",\"\",'Longitudinal Joint Density'!$H$69)","v":""},{"$f":"IF('Longitudinal Joint Density'!$B$6=\"\",\"\",'Longitudinal Joint Density'!$B$6)","v":"TEX-207-F, PART VII"},{"$f":"IF('Longitudinal Joint Density'!$B$67=\"\",\"\",'Longitudinal Joint Density'!$B$67)","v":"Sublot #"},{"$f":"IF('Longitudinal Joint Density'!$H$67=\"\",\"\",'Longitudinal Joint Density'!$H$67)","v":4},{"$f":"IF('Longitudinal Joint Density'!$B$69=\"\",\"\",'Longitudinal Joint Density'!$B$69)","v":"Interior Mat Density"},{"$f":"IF('Longitudinal Joint Density'!$C$69=\"\",\"\",'Longitudinal Joint Density'!$C$69)","v":"Roadway Core Bulk Specific Gravity"},{"$f":"IF('Longitudinal Joint Density'!$D$69=\"\",\"\",'Longitudinal Joint Density'!$D$69)","v":"Core # 1 Ga"}]
[108,{"$f":"IF('Longitudinal Joint Density'!$H$70=\"\",\"\",'Longitudinal Joint Density'!$H$70)","v":""},{"$f":"IF('Longitudinal Joint Density'!$B$6=\"\",\"\",'Longitudinal Joint Density'!$B$6)","v":"TEX-207-F, PART VII"},{"$f":"IF('Longitudinal Joint Density'!$B$67=\"\",\"\",'Longitudinal Joint Density'!$B$67)","v":"Sublot #"},{"$f":"IF('Longitudinal Joint Density'!$H$67=\"\",\"\",'Longitudinal Joint Density'!$H$67)","v":4},{"$f":"IF('Longitudinal Joint Density'!$B$69=\"\",\"\",'Longitudinal Joint Density'!$B$69)","v":"Interior Mat Density"},{"$f":"IF('Longitudinal Joint Density'!$C$69=\"\",\"\",'Longitudinal Joint Density'!$C$69)","v":"Roadway Core Bulk Specific Gravity"},{"$f":"IF('Longitudinal Joint Density'!$D$70=\"\",\"\",'Longitudinal Joint Density'!$D$70)","v":"Core # 2 Ga"}]
[109,{"$f":"IF('Longitudinal Joint Density'!$H$71=\"\",\"\",'Longitudinal Joint Density'!$H$71)","v":""},{"$f":"IF('Longitudinal Joint Density'!$B$6=\"\",\"\",'Longitudinal Joint Density'!$B$6)","v":"TEX-207-F, PART VII"},{"$f":"IF('Longitudinal Joint Density'!$B$67=\"\",\"\",'Longitudinal Joint Density'!$B$67)","v":"Sublot #"},{"$f":"IF('Longitudinal Joint Density'!$H$67=\"\",\"\",'Longitudinal Joint Density'!$H$67)","v":4},{"$f":"IF('Longitudinal Joint Density'!$B$69=\"\",\"\",'Longitudinal Joint Density'!$B$69)","v":"Interior Mat Density"},{"$f":"IF('Longitudinal Joint Density'!$C$69=\"\",\"\",'Longitudinal Joint Density'!$C$69)","v":"Roadway Core Bulk Specific Gravity"},{"$f":"IF('Longitudinal Joint Density'!$D$71=\"\",\"\",'Longitudinal Joint Density'!$D$71)","v":"Average Ga"}]
[110,{"$f":"IF('Longitudinal Joint Density'!$H$73=\"\",\"\",'Longitudinal Joint Density'!$H$73)","v":""},{"$f":"IF('Longitudinal Joint Density'!$B$6=\"\",\"\",'Longitudinal Joint Density'!$B$6)","v":"TEX-207-F, PART VII"},{"$f":"IF('Longitudinal Joint Density'!$B$67=\"\",\"\",'Longitudinal Joint Density'!$B$67)","v":"Sublot #"},{"$f":"IF('Longitudinal Joint Density'!$H$67=\"\",\"\",'Longitudinal Joint Density'!$H$67)","v":4},{"$f":"IF('Longitudinal Joint Density'!$B$73=\"\",\"\",'Longitudinal Joint Density'!$B$73)","v":"Rice Gravity, Gr:"}]
[111,{"$f":"IF('Longitudinal Joint Density'!$H$75=\"\",\"\",'Longitudinal Joint Density'!$H$75)","v":""},{"$f":"IF('Longitudinal Joint Density'!$B$6=\"\",\"\",'Longitudinal Joint Density'!$B$6)","v":"TEX-207-F, PART VII"},{"$f":"IF('Longitudinal Joint Density'!$B$67=\"\",\"\",'Longitudinal Joint Density'!$B$67)","v":"Sublot #"},{"$f":"IF('Longitudinal Joint Density'!$H$67=\"\",\"\",'Longitudinal Joint Density'!$H$67)","v":4},{"$f":"IF('Longitudinal Joint Density'!$B$75=\"\",\"\",'Longitudinal Joint Density'!$B$75)","v":"Correlated Joint Density"},{"$f":"IF('Longitudinal Joint Density'!$D$75=\"\",\"\",'Longitudinal Joint Density'!$D$75)","v":"Left Mat Edge"}]
[112,{"$f":"IF('Longitudinal Joint Density'!$H$76=\"\",\"\",'Longitudinal Joint Density'!$H$76)","v":""},{"$f":"IF('Longitudinal Joint Density'!$B$6=\"\",\"\",'Longitudinal Joint Density'!$B$6)","v":"TEX-207-F, PART VII"},{"$f":"IF('Longitudinal Joint Density'!$B$67=\"\",\"\",'Longitudinal Joint Density'!$B$67)","v":"Sublot #"},{"$f":"IF('Longitudinal Joint Density'!$H$67=\"\",\"\",'Longitudinal Joint Density'!$H$67)","v":4},{"$f":"IF('Longitudinal Joint Density'!$B$75=\"\",\"\",'Longitudinal Joint Density'!$B$75)","v":"Correlated Joint Density"},{"$f":"IF('Longitudinal Joint Density'!$D$76=\"\",\"\",'Longitudinal Joint Density'!$D$76)","v":"Right Mat Edge"}]
[113,{"$f":"IF('Longitudinal Joint Density'!$C$86=\"\",\"\",'Longitudinal Joint Density'!$C$86)","v":""},"Tested By ",{"$f":"IF('Longitudinal Joint Density'!$B$86=\"\",\"\",'Longitudinal Joint Density'!$B$86)","v":"TX207VII"}]
[114,{"$f":"IF('Longitudinal Joint Density'!$G$86=\"\",\"\",'Longitudinal Joint Density'!$G$86)","v":""},"Tested Date ",{"$f":"IF('Longitudinal Joint Density'!$B$86=\"\",\"\",'Longitudinal Joint Density'!$B$86)","v":"TX207VII"}]

{"sheet":"data","index":2,"n_rows":18,"n_cols":16,"rows_kept":18,"cut":false,"hidden":true,"merged":[[6,8,6,9],[2,4,2,6],[2,10,2,12],[1,10,1,13],[2,8,2,9],[1,4,1,7],[3,8,3,9],[4,8,4,9],[5,8,5,9]]}
[]
[null,null,null,null,"LEFT MAT EDGE LONGITUDINAL JOINT",null,null,null,null,null,"RIGHT MAT EDGE LONGITUDINAL JOINT",null,null,null,null,"Mix Type"]
[null,"Correlation",null,"Sublot Number","Correlated Joint Density",null,null,"Average","Core Density",null,"Correlated Joint Density",null,null,"Average",null,"CMHB C"]
[null,{"$f":"+IF('Longitudinal Joint Density'!E71=\"\",\"\",I4-'Longitudinal Joint Density'!E43)","v":""},null,1,{"$f":"IF(ISERROR(+IF('Longitudinal Joint Density'!E35=\"\",\"\",'Longitudinal Joint Density'!E35+$B4)),\"\",+IF('Longitudinal Joint Density'!E35=\"\",\"\",'Longitudinal Joint Density'!E35+$B4))","v":""},{"$f":"IF(ISERROR(+IF('Longitudinal Joint Density'!E36=\"\",\"\",'Longitudinal Joint Density'!E36+$B4)),\"\",+IF('Longitudinal Joint Density'!E36=\"\",\"\",'Longitudinal Joint Density'!E36+$B4))","v":""},{"$f":"IF(ISERROR(+IF('Longitudinal Joint Density'!E37=\"\",\"\",'Longitudinal Joint Density'!E37+$B4)),\"\",+IF('Longitudinal Joint Density'!E37=\"\",\"\",'Longitudinal Joint Density'!E37+$B4))","v":""},{"$f":"IF(ISERROR(+IF(E4=\"\",\"\",AVERAGE(E4:G4))),\"\",+IF(E4=\"\",\"\",AVERAGE(E4:G4)))","v":""},{"$f":"IF(ISERROR(+IF('Longitudinal Joint Density'!E69=\"\",\"\",'Longitudinal Joint Density'!E71*62.4)),\"\",+IF('Longitudinal Joint Density'!E69=\"\",\"\",'Longitudinal Joint Density'!E71*62.4))","v":""},null,{"$f":"IF(ISERROR(+IF('Longitudinal Joint Density'!E53=\"\",\"\",'Longitudinal Joint Density'!E53+$B4)),\"\",+IF('Longitudinal Joint Density'!E53=\"\",\"\",'Longitudinal Joint Density'!E53+$B4))","v":""},{"$f":"IF(ISERROR(+IF('Longitudinal Joint Density'!E54=\"\",\"\",'Longitudinal Joint Density'!E54+$B4)),\"\",+IF('Longitudinal Joint Density'!E54=\"\",\"\",'Longitudinal Joint Density'!E54+$B4))","v":""},{"$f":"IF(ISERROR(+IF('Longitudinal Joint Density'!E55=\"\",\"\",'Longitudinal Joint Density'!E55+$B4)),\"\",+IF('Longitudinal Joint Density'!E55=\"\",\"\",'Longitudinal Joint Density'!E55+$B4))","v":""},{"$f":"IF(ISERROR(+IF(K4=\"\",\"\",AVERAGE(K4:M4))),\"\",+IF(K4=\"\",\"\",AVERAGE(K4:M4)))","v":""},null,"CMHB F"]
[null,{"$f":"+IF('Longitudinal Joint Density'!F71=\"\",\"\",I5-'Longitudinal Joint Density'!F43)","v":""},null,2,{"$f":"IF(ISERROR(+IF('Longitudinal Joint Density'!F35=\"\",\"\",'Longitudinal Joint Density'!F35+$B5)),\"\",+IF('Longitudinal Joint Density'!F35=\"\",\"\",'Longitudinal Joint Density'!F35+$B5))","v":""},{"$f":"IF(ISERROR(+IF('Longitudinal Joint Density'!F36=\"\",\"\",'Longitudinal Joint Density'!F36+$B5)),\"\",+IF('Longitudinal Joint Density'!F36=\"\",\"\",'Longitudinal Joint Density'!F36+$B5))","v":""},{"$f":"IF(ISERROR(+IF('Longitudinal Joint Density'!F37=\"\",\"\",'Longitudinal Joint Density'!F37+$B5)),\"\",+IF('Longitudinal Joint Density'!F37=\"\",\"\",'Longitudinal Joint Density'!F37+$B5))","v":""},{"$f":"IF(ISERROR(+IF(E5=\"\",\"\",AVERAGE(E5:G5))),\"\",+IF(E5=\"\",\"\",AVERAGE(E5:G5)))","v":""},{"$f":"IF(ISERROR(+IF('Longitudinal Joint Density'!F69=\"\",\"\",'Longitudinal Joint Density'!F71*62.4)),\"\",+IF('Longitudinal Joint Density'!F69=\"\",\"\",'Longitudinal Joint Density'!F71*62.4))","v":""},null,{"$f":"IF(ISERROR(+IF('Longitudinal Joint Density'!F53=\"\",\"\",'Longitudinal Joint Density'!F53+$B5)),\"\",+IF('Longitudinal Joint Density'!F53=\"\",\"\",'Longitudinal Joint Density'!F53+$B5))","v":""},{"$f":"IF(ISERROR(+IF('Longitudinal Joint Density'!F54=\"\",\"\",'Longitudinal Joint Density'!F54+$B5)),\"\",+IF('Longitudinal Joint Density'!F54=\"\",\"\",'Longitudinal Joint Density'!F54+$B5))","v":""},{"$f":"IF(ISERROR(+IF('Longitudinal Joint Density'!F55=\"\",\"\",'Longitudinal Joint Density'!F55+$B5)),\"\",+IF('Longitudinal Joint Density'!F55=\"\",\"\",'Longitudinal Joint Density'!F55+$B5))","v":""},{"$f":"IF(ISERROR(+IF(K5=\"\",\"\",AVERAGE(K5:M5))),\"\",+IF(K5=\"\",\"\",AVERAGE(K5:M5)))","v":""},null,"SMA C"]
[null,{"$f":"+IF('Longitudinal Joint Density'!G71=\"\",\"\",I6-'Longitudinal Joint Density'!G43)","v":""},null,3,{"$f":"IF(ISERROR(+IF('Longitudinal Joint Density'!G35=\"\",\"\",'Longitudinal Joint Density'!G35+$B6)),\"\",+IF('Longitudinal Joint Density'!G35=\"\",\"\",'Longitudinal Joint Density'!G35+$B6))","v":""},{"$f":"IF(ISERROR(+IF('Longitudinal Joint Density'!G36=\"\",\"\",'Longitudinal Joint Density'!G36+$B6)),\"\",+IF('Longitudinal Joint Density'!G36=\"\",\"\",'Longitudinal Joint Density'!G36+$B6))","v":""},{"$f":"IF(ISERROR(+IF('Longitudinal Joint Density'!G37=\"\",\"\",'Longitudinal Joint Density'!G37+$B6)),\"\",+IF('Longitudinal Joint Density'!G37=\"\",\"\",'Longitudinal Joint Density'!G37+$B6))","v":""},{"$f":"IF(ISERROR(+IF(E6=\"\",\"\",AVERAGE(E6:G6))),\"\",+IF(E6=\"\",\"\",AVERAGE(E6:G6)))","v":""},{"$f":"IF(ISERROR(+IF('Longitudinal Joint Density'!G69=\"\",\"\",'Longitudinal Joint Density'!G71*62.4)),\"\",+IF('Longitudinal Joint Density'!G69=\"\",\"\",'Longitudinal Joint Density'!G71*62.4))","v":""},null,{"$f":"IF(ISERROR(+IF('Longitudinal Joint Density'!G53=\"\",\"\",'Longitudinal Joint Density'!G53+$B6)),\"\",+IF('Longitudinal Joint Density'!G53=\"\",\"\",'Longitudinal Joint Density'!G53+$B6))","v":""},{"$f":"IF(ISERROR(+IF('Longitudinal Joint Density'!G54=\"\",\"\",'Longitudinal Joint Density'!G54+$B6)),\"\",+IF('Longitudinal Joint Density'!G54=\"\",\"\",'Longitudinal Joint Density'!G54+$B6))","v":""},{"$f":"IF(ISERROR(+IF('Longitudinal Joint Density'!G55=\"\",\"\",'Longitudinal Joint Density'!G55+$B6)),\"\",+IF('Longitudinal Joint Density'!G55=\"\",\"\",'Longitudinal Joint Density'!G55+$B6))","v":""},{"$f":"IF(ISERROR(+IF(K6=\"\",\"\",AVERAGE(K6:M6))),\"\",+IF(K6=\"\",\"\",AVERAGE(K6:M6)))","v":""},null,"SMA D"]
[null,{"$f":"+IF('Longitudinal Joint Density'!H71=\"\",\"\",I7-'Longitudinal Joint Density'!H43)","v":""},null,4,{"$f":"IF(ISERROR(+IF('Longitudinal Joint Density'!H35=\"\",\"\",'Longitudinal Joint Density'!H35+$B7)),\"\",+IF('Longitudinal Joint Density'!H35=\"\",\"\",'Longitudinal Joint Density'!H35+$B7))","v":""},{"$f":"IF(ISERROR(+IF('Longitudinal Joint Density'!H36=\"\",\"\",'Longitudinal Joint Density'!H36+$B7)),\"\",+IF('Longitudinal Joint Density'!H36=\"\",\"\",'Longitudinal Joint Density'!H36+$B7))","v":""},{"$f":"IF(ISERROR(+IF('Longitudinal Joint Density'!H37=\"\",\"\",'Longitudinal Joint Density'!H37+$B7)),\"\",+IF('Longitudinal Joint Density'!H37=\"\",\"\",'Longitudinal Joint Density'!H37+$B7))","v":""},{"$f":"IF(ISERROR(+IF(E7=\"\",\"\",AVERAGE(E7:G7))),\"\",+IF(E7=\"\",\"\",AVERAGE(E7:G7)))","v":""},{"$f":"IF(ISERROR(+IF('Longitudinal Joint Density'!H69=\"\",\"\",'Longitudinal Joint Density'!H71*62.4)),\"\",+IF('Longitudinal Joint Density'!H69=\"\",\"\",'Longitudinal Joint Density'!H71*62.4))","v":""},null,{"$f":"IF(ISERROR(+IF('Longitudinal Joint Density'!H53=\"\",\"\",'Longitudinal Joint Density'!H53+$B7)),\"\",+IF('Longitudinal Joint Density'!H53=\"\",\"\",'Longitudinal Joint Density'!H53+$B7))","v":""},{"$f":"IF(ISERROR(+IF('Longitudinal Joint Density'!H54=\"\",\"\",'Longitudinal Joint Density'!H54+$B7)),\"\",+IF('Longitudinal Joint Density'!H54=\"\",\"\",'Longitudinal Joint Density'!H54+$B7))","v":""},{"$f":"IF(ISERROR(+IF('Longitudinal Joint Density'!H55=\"\",\"\",'Longitudinal Joint Density'!H55+$B7)),\"\",+IF('Longitudinal Joint Density'!H55=\"\",\"\",'Longitudinal Joint Density'!H55+$B7))","v":""},{"$f":"IF(ISERROR(+IF(K7=\"\",\"\",AVERAGE(K7:M7))),\"\",+IF(K7=\"\",\"\",AVERAGE(K7:M7)))","v":""},null,"SMA F"]
[null,null,null,null,null,null,null,null,null,null,null,null,null,null,null,"SMAR C"]
[null,null,null,null,null,null,null,null,null,null,null,null,null,null,null,"SMAR F"]
[null,null,null,null,null,null,null,null,null,null,null,null,null,null,null,"SP A"]
[null,null,null,null,null,null,null,null,null,null,null,null,null,null,null,"SP B"]
[null,null,null,null,null,null,null,null,null,null,null,null,null,null,null,"SP C"]
[null,null,null,null,null,null,null,null,null,null,null,null,null,null,null,"SP D"]
[null,null,null,null,null,null,null,null,null,null,null,null,null,null,null,"Type A"]
[null,null,null,null,null,null,null,null,null,null,null,null,null,null,null,"Type B"]
[null,null,null,null,null,null,null,null,null,null,null,null,null,null,null,"Type C"]
[null,null,null,null,null,null,null,null,null,null,null,null,null,null,null,"Type D"]
[null,null,null,null,null,null,null,null,null,null,null,null,null,null,null,"Type F"]

{"sheet":"spcyr","index":3,"n_rows":17,"n_cols":4,"rows_kept":17,"cut":false,"hidden":true,"merged":[]}
["spec1993","spec1995","spec2004","spec2024"]
["CMHB C","CMHB C","CMHB C","SMA C"]
["CMHB F","CMHB F","CMHB F","SMA D"]
["SMA C","SMA C","SMA C","SMA F"]
["SMA D","SMA D","SMA D","SMAR F"]
["SMA F","SMA F","SMA F","SP B"]
["SMAR C","SMAR C","SMAR C","SP C"]
["SMAR F","SMAR F","SMAR F","SP D"]
["SP A","SP A","SP A","Type B"]
["SP B","SP B","SP B","Type C"]
["SP C","SP C","SP C","Type D"]
["SP D","SP D","SP D","Type F"]
["Type A","Type A","Type A"]
["Type B","Type B","Type B"]
["Type C","Type C","Type C"]
["Type D","Type D","Type D"]
["Type F","Type F","Type F"]

{"sheet":"REVISIONS","index":4,"n_rows":31,"n_cols":2,"rows_kept":31,"cut":false,"hidden":true,"merged":[[15,1,16,10]]}
[]
[null,"REVISIONS"]
[]
[null,"Conditional formatting changed for Cells G35, G36, G37 & G38"]
[]
[null,"Conditional formatting changed for Cells G47, G48, G49 & G50"]
[]
[null,"Conditional formatting changed for Cells G57, G58, G59 & G60"]
[]
[null,"Conditional formatting changed for Cells H57, H58, H59 & H60"]
[]
[null,"Cell D18 - center justification"]
[]
[null,"2005-06-20"]
[]
[null,"\"#Value!\" statement occurred in cells which confuses District Personnel, all changes made to avoid the occurrence of this."]
[]
[]
[null,"IF statement revised where \"AND\" replaced with \"OR\" for Cells G35-38 and G47-50"]
[]
[null,"IF statement revised where it refers to cells in Data worksheet for Cells G57-60 and H57-60"]
[]
[null,"Rounding changed from 2 to 3 decimal places for Cells F57-60"]
[]
[null,"2019-11-22"]
[]
[null,"Added test method TX207PVII to include the part number"]
[]
[null,"2024-08-06"]
[]
[null,"Added 2024 spec items"]